Workbook

Sheet OPS
A1: No | B1: CEDULA | C1: NOMBRES APELLIDOS CONTRATISTA | D1: PAIS DE NACIMIENTO | E1: DEPARTAMENTO DE NACIMIENTO | F1: CIUDAD DE NACIMIENTO | G1: FORMACION ACADEMICA | H1: OBJETO DEL CONTRATO | I1: FECHA INICIO | J1: FECHA TERMINACION | K1: VALOR MENSUAL | L1: VALOR TOTAL | M1: DEPENDENCIA DONDE PRESTA LOS SERVICIOS EN LA ENTIDAD | N1: SERVICIO | O1: TIPO DE CONTRATO | P1: CORREO | Q1: TELEFONO | R1: AÑOS DE EXPERIENCIA
A2: 1 | B2: 55309225 | C2: ADRIANA BALLESTAS MARTINEZ | D2: Colombia | E2: Atlántico | F2: BARRANQUILLA | G2: MEDICINA | H2: MEDICO DE URGENCIAS | I2: 03 de Noviembre de 2020 | J2: 30 de Noviembre de 2020 | K2: 3072000 | L2: 3072000 | M2: CENTRO DE SALUD 13 DE JUNIO | N2: Asistencial | O2: PRESTACION DE SERVICIO | P2: adriana_ballestas@hotmail.com | Q2: 3042592 | R2: 3
A3: =+A2+1 -> 2 | B3: 1103109488 | C3: ADRIANA MARCELA CASTAÑO RODELO | D3: Colombia | E3: Atlántico | F3: MAJAGUAL | G3: MEDICINA | H3: MEDICO PROGRAMA CARDIOVASCULAR | I3: 03 de Noviembre de 2020 | J3: 30 de Noviembre de 2020 | K3: 2300000 | L3: 2300000 | M3: CENTRO DE SALUD SALAMANCA | N3: Asistencial | O3: PRESTACION DE SERVICIO | P3: adria0319@hotmail.com | Q3: 3023238162 | R3: 2
A4: =+A3+1 -> 3 | B4: 22465848 | C4: ADRIANA OROZCO CANTILLO | D4: Colombia | E4: Atlántico | F4: BARRANQUILLA | G4: BACHILLER ACADEMICO | H4: PERSONAL LIMPIEZA Y ASEO | I4: 03 de Noviembre de 2020 | J4: 30 de Noviembre de 2020 | K4: 1215000 | L4: 1215000 | M4: CENTRO DE SALUD MACLOVIA | N4: Administrativo | O4: PRESTACION DE SERVICIO | P4: adesorozcocantillo@hotmail.com | Q4: 3005063640 | R4: 5
A5: 4 | B5: 1140895535 | C5: ADRIANA PAOLA GONZALEZ ROMERO | D5: Colombia | E5: Atlántico | F5: BARRANQUILLA | G5: ENFERMERIA | H5: ENFERMERA JEFE CONSULTA EXTERNA | I5: 03 de Noviembre de 2020 | J5: 30 de Noviembre de 2020 | K5: 2120000 | L5: 2120000 | M5: CENTRO DE SALUD LA ESPERANZA | N5: Asistencial | O5: PRESTACION DE SERVICIO | P5: adriana_gonzalez97@outlook.es | Q5: 3017466458 | R5: 2
A6: 5 | B6: 55236945 | C6: ADRIANA PATRICIA MARQUEZ CANTILLO | D6: Colombia | E6: Atlántico | F6: VALLEDUPAR | G6: TECNICA PROFESIONAL EN AUXILIAR DE ENFERMERIA | H6: VACUNADOR(A) | I6: 03 de Noviembre de 2020 | J6: 30 de Noviembre de 2020 | K6: 1400000 | L6: 1400000 | M6: CENTRO VACUNACION MANUELA BELTRAN | N6: Asistencial | O6: PRESTACION DE SERVICIO | P6: adrianav0927@hotmail.com | Q6: 3727379 | R6: 3
A7: 6 | B7: 1042451687 | C7: ADRIANA SOFIA PEREZ CERVANTES | D7: Colombia | E7: Atlántico | F7: SOLEDAD | G7: TECNICA PROFESIONAL EN ARCHIVISTICA | H7: AGENTE CALL CENTER | I7: 03 de Noviembre de 2020 | J7: 30 de Noviembre de 2020 | K7: 1378000 | L7: 1378000 | M7: CALL CENTER -CIUDADELA | N7: Administrativo | O7: PRESTACION DE SERVICIO | P7: adrisofi1231@gmail.com | Q7: 3135288336 | R7: 3
A8: 7 | B8: 39059528 | C8: ALBA CEVEDDA SERNA MEJIA | D8: Colombia | E8: Magdalena | F8: CIÉNAGA | G8: TECNICA PROFESIONAL EN AUXILIAR DE ENFERMERIA | H8: AUXILIAR DE ENFERMERIA URGENCIAS | I8: 03 de Noviembre de 2020 | J8: 30 de Noviembre de 2020 | K8: 1653600 | L8: 1653600 | M8: CENTRO DE SALUD CIUDADELA METROPOLITANA | N8: Asistencial | O8: PRESTACION DE SERVICIO | P8: albithaserna21@hotmail.com | Q8: 3003412712 | R8: 5
A9: 8 | B9: 1143437950 | C9: ALBA KARINA ARIAS ESCOBAR | D9: Colombia | E9: Atlántico | F9: BARRANQUILLA | G9: MEDICINA | H9: MEDICO CONSULTA EXTERNA | I9: 03 de Noviembre de 2020 | J9: 30 de Noviembre de 2020 | K9: 2120000 | L9: 2120000 | M9: CENTRO DE SALUD MANUELA BELTRAN | N9: Asistencial | O9: PRESTACION DE SERVICIO | P9: karina-arias2012@hotmail.com | Q9: 3727622 | R9: 4
A10: 9 | B10: 1045166274 | C10: ALBA MARINA RODRIGUEZ YANCE | D10: Colombia | E10: Atlántico | F10: BARRANQUILLA | G10: ODONTOLOGIA | H10: ASESORA SALUD PUBLICA EN LA SUBGERENCIA CIENTIFICA - COVID19 | I10: 03 de Noviembre de 2020 | J10: 30 de Noviembre de 2020 | K10: 5800000 | L10: 5800000 | M10: OFICINA ADMINISTRATIVA SUBGERENCIA CIENTIFICA - COSTA HERMOSA | N10: Administrativo | O10: PRESTACION DE SERVICIO | P10: ayance4@hotmail.com | Q10: =VLOOKUP(C10:C504,[1]OPS!$A$3:$C$492,3,0) -> 3002620238 | R10: 5
A11: 10 | B11: 1140874429 | C11: ALBERTO DE LA OSSA DE AVILA | D11: Colombia | E11: Atlántico | F11: SOLEDAD | G11: ECONOMIA | H11: PROFESIONAL PRESUPUESTO | I11: 03 de Noviembre de 2020 | J11: 30 de Noviembre de 2020 | K11: 3500000 | L11: 3500000 | M11: FINANCIERA -ADMON COSTA HERMOSA | N11: Administrativo | O11: PRESTACION DE SERVICIO | P11: amdelaossa94@gmail.com | Q11: 3815185 | R11: 3
A12: 11 | B12: 8505956 | C12: ALBERTO NAVARRO MORALES | D12: Colombia | E12: Atlántico | F12: BARRANQUILLA | G12: CONTADURIA PUBLICA | H12: AUXILIAR FACTURACION URGENCIAS | I12: 03 de Noviembre de 2020 | J12: 30 de Noviembre de 2020 | K12: 1680000 | L12: 1680000 | M12: CENTRO DE SALUD CIUDADELA METROPOLITANA | N12: Administrativo | O12: PRESTACION DE SERVICIO | P12: alberton-728@hotmail.com | Q12: 3326004 | R12: 3
A13: 12 | B13: 64543985 | C13: ALCIRA GOMEZ ARRIETA | D13: Colombia | E13: Sucre | F13: COROZAL | G13: ENFERMERIA | H13: COORDINADORA PAI | I13: 03 de Noviembre de 2020 | J13: 30 de Noviembre de 2020 | K13: 4000000 | L13: 4000000 | M13: CENTRO VACUNACION MANUELA BELTRAN | N13: Administrativo | O13: PRESTACION DE SERVICIO | P13: alciragomezarrieta@hotmail.com | Q13: 3007901179 | R13: 12
A14: 13 | B14: 8566775 | C14: ALEJANDRO LIBARDO ALEMAN MARQUEZ | D14: Colombia | E14: Atlántico | F14: SOLEDAD | G14: TECNICO | H14: AUXILIAR DE ARCHIVO | I14: 03 de Noviembre de 2020 | J14: 30 de Noviembre de 2020 | K14: 1500000 | L14: 1500000 | M14: ARCHIVO CENTRAL | N14: Administrativo | O14: PRESTACION DE SERVICIO | P14: alejandroalemanm@hotmail.com | Q14: 3005620188 | R14: 6
A15: 14 | B15: 1042428171 | C15: ALEX ENRIQUE VILLARREAL IBAÑEZ | D15: Colombia | E15: Atlántico | F15: BARRANQUILLA | G15: ODONTOLOGIA | H15: ODONTOLOGO | I15: 03 de Noviembre de 2020 | J15: 30 de Noviembre de 2020 | K15: 1900000 | L15: 1900000 | M15: CENTRO DE SALUD 13 DE JUNIO | N15: Asistencial | O15: PRESTACION DE SERVICIO | P15: dr.alex.villarreal.i@gmail.com | Q15: 3926281 | R15: 6
A16: 15 | B16: 22523223 | C16: ALEXANDRA ESTHER MOLINA PEREZ | D16: Colombia | E16: Atlántico | F16: BARRANQUILLA | G16: BACHILLER ACADEMICO | H16: PERSONAL LIMPIEZA Y ASEO URGENCIA | I16: 03 de Noviembre de 2020 | J16: 30 de Noviembre de 2020 | K16: 1653600 | L16: 1653600 | M16: CENTRO DE SALUD 13 DE JUNIO | N16: Administrativo | O16: PRESTACION DE SERVICIO | P16: alexandramolina592@gmail.com | Q16: 3128199503 | R16: 8
A17: 16 | B17: 72000601 | C17: ALEXIS JAVIER SUAREZ CABALLERO | D17: Colombia | E17: Atlántico | F17: BARRANQUILLA | G17: BACHILLER ACADEMICO | H17: AUXILIAR FACTURACION URGENCIAS | I17: 03 de Noviembre de 2020 | J17: 30 de Noviembre de 2020 | K17: 1680000 | L17: 1680000 | M17: CENTRO DE SALUD 13 DE JUNIO | N17: Administrativo | O17: PRESTACION DE SERVICIO | P17: alesuca77@hotmail.com | Q17: 3003479650 | R17: 10
A18: 17 | B18: 15666678 | C18: ALFREDO ANTONIO RAMIREZ PEREIRA | D18: Colombia | E18: Atlántico | F18: SOLEDAD | G18: TECNICO | H18: LIDER ARCHIVO CENTRAL | I18: 03 de Noviembre de 2020 | J18: 30 de Noviembre de 2020 | K18: 3000000 | L18: 3000000 | M18: ARCHIVO CENTRAL | N18: Administrativo | O18: PRESTACION DE SERVICIO | P18: planetero1103@hotmail.com | Q18: =VLOOKUP(C18:C505,[1]OPS!$A$3:$C$492,3,0) -> 3003885293 | R18: 12
A19: 18 | B19: 72212724 | C19: ALFREDO DE JESUS SIERRA BARRIOS | D19: Colombia | E19: Atlántico | F19: BARRANQUILLA | G19: INGENIERIA INDUSTRIAL | H19: AUXILIAR FACTURACION | I19: 03 de Noviembre de 2020 | J19: 30 de Noviembre de 2020 | K19: 1400000 | L19: 1400000 | M19: CENTRO DE SALUD EL PARQUE | N19: Administrativo | O19: PRESTACION DE SERVICIO | P19: alfredsierra@hotmail.com | Q19: 3844532 | R19: 3
A20: 19 | B20: 8721508 | C20: ALONSO JOSÉ RIQUETT DE LA HOZ | D20: Colombia | E20: Atlántico | F20: BARRANQUILLA | G20: MEDICINA | H20: MEDICO DE PROMOCIÓN Y MANTENIMIENTO DE LA SALUD | I20: 03 de Noviembre de 2020 | J20: 30 de Noviembre de 2020 | K20: 2120000 | L20: 2120000 | M20: CENTRO DE SALUD COSTA HERMOSA | N20: Asistencial | O20: PRESTACION DE SERVICIO | P20: alonsoriquett@hotmail.com | Q20: 3575393 | R20: 11
A21: 20 | B21: 1139614174 | C21: ALONSO MATEO LLANES ARIZA | D21: Colombia | E21: Atlántico | F21: SANTO TOMAS | G21: MEDICINA | H21: MEDICO CONSULTA EXTERNA | I21: 03 de Noviembre de 2020 | J21: 30 de Noviembre de 2020 | K21: 2120000 | L21: 2120000 | M21: CENTRO DE SALUD LA ESPERANZA | N21: Asistencial | O21: PRESTACION DE SERVICIO | P21: mateollanes_2431@hotmail.com | Q21: =VLOOKUP(C21:C508,[1]OPS!$A$3:$C$492,3,0) -> 3002552869 | R21: 8
A22: 21 | B22: 8697543 | C22: ALVARO ARENAS GONZALEZ | D22: Colombia | E22: Atlántico | F22: BARRANQUILLA | G22: MEDICINA | H22: MEDICO DE RUTA INTEGRAL MATERNO PERINATAL | I22: 03 de Noviembre de 2020 | J22: 30 de Noviembre de 2020 | K22: 5088000 | L22: 5088000 | M22: CENTRO DE SALUD 13 DE JUNIO | N22: Asistencial | O22: PRESTACION DE SERVICIO | P22: a_arenasg@hotmail.com | Q22: 3012113981 | R22: 11
A23: 22 | B23: 8680252 | C23: ALVARO SAMUEL PULGAR LEMUS | D23: Colombia | E23: Atlántico | F23: BARRANQUILLA | G23: BACHILLER ACADEMICO | H23: ORIENTADOR | I23: 03 de Noviembre de 2020 | J23: 30 de Noviembre de 2020 | K23: 1270000 | L23: 1270000 | M23: ADMIISTRATIVA- COSTA HERMOSA | N23: Administrativo | O23: PRESTACION DE SERVICIO | P23: piedadpulgar@live.com | Q23: 3002905490 | R23: 6
A24: 23 | B24: 1047338042 | C24: AMINTA PARDO GUZMAN | D24: Colombia | E24: Atlántico | F24: SOLEDAD | G24: TECNICA PROFESIONAL EN AUXILIAR DE ENFERMERIA | H24: AUXILIAR DE ENFERMERIA CONSULTA EXTERNA | I24: 03 de Noviembre de 2020 | J24: 30 de Noviembre de 2020 | K24: 1166000 | L24: 1166000 | M24: CENTRO DE SALUD SALAMANCA | N24: Asistencial | O24: PRESTACION DE SERVICIO | P24: amypardoguzman@gmail.com | Q24: 3042916335 | R24: 2
A25: 24 | B25: 1045688469 | C25: AMY MOVILLA COMAS | D25: Colombia | E25: Atlántico | F25: BARRANQUILLA | G25: ENFERMERIA | H25: ENFERMERA JEFE CONSULTA EXTERNA Y PROGRAMA DE RIESGO CARDIOVASCULAR | I25: 03 de Noviembre de 2020 | J25: 30 de Noviembre de 2020 | K25: 2300000 | L25: 2300000 | M25: CENTRO DE SALUD SALAMANCA | N25: Asistencial | O25: PRESTACION DE SERVICIO | P25: banda251224@hotmail.com | Q25: 3004080237 | R25: 5
A26: 25 | B26: 32813366 | C26: ANA GONZALEZ ZAMBRANO | D26: Colombia | E26: Atlántico | F26: SOLEDAD | G26: TECNICO | H26: AUXILIAR DE ARCHIVO | I26: 03 de Noviembre de 2020 | J26: 30 de Noviembre de 2020 | K26: 2000000 | L26: 2000000 | M26: ARCHIVO CENTRAL | N26: Administrativo | O26: PRESTACION DE SERVICIO | P26: cegon1825@hotmail.com | Q26: 3104741637 | R26: 12
A27: 26 | B27: 1043671104 | C27: ANA MILENA GAMARRA HERRERA | D27: Colombia | E27: Atlántico | F27: BARRANQUILLA | G27: TECNICO | H27: AUXILIAR SERVICIOS FARMACEUTICOS | I27: 03 de Noviembre de 2020 | J27: 30 de Noviembre de 2020 | K27: 1524000 | L27: 1524000 | M27: FARMACIA CENTRAL COSTA HERMOSA | N27: Asistencial | O27: PRESTACION DE SERVICIO | P27: milenagamarra0418@gmail.com | Q27: 3015202619 | R27: 4
A28: 27 | B28: 1045704276 | C28: ANA MILENA HERRERA ALVIS | D28: Colombia | E28: Atlántico | F28: BARRANQUILLA | G28: ENFERMERIA | H28: ENFERMERA JEFE DE PROMOCIÓN Y MANTENIMIENTO DE LA SALUD- EMERGENCIA COVID19 | I28: 03 de Noviembre de 2020 | J28: 30 de Noviembre de 2020 | K28: 3810000 | L28: 3810000 | M28: CENTRO DE SALUD COSTA HERMOSA | N28: Asistencial | O28: PRESTACION DE SERVICIO | P28: anymile90@hotmail.com | Q28: 3017397849 | R28: 7
A29: 28 | B29: 32825462 | C29: ANAIS DE JESUS RODRIGUEZ DE LAS AGUAS | D29: Colombia | E29: Atlántico | F29: SOLEDAD | G29: BASICA PRIMARIA | H29: PERSONAL LIMPIEZA Y ASEO | I29: 03 de Noviembre de 2020 | J29: 30 de Noviembre de 2020 | K29: 1215000 | L29: 1215000 | M29: CENTRO DE SALUD COSTA HERMOSA | N29: Administrativo | O29: PRESTACION DE SERVICIO | P29: anaisdejesusrodriguez274@gmail.com | Q29: 3022293663 | R29: 4
A30: 29 | B30: 1001893516 | C30: ANDREA ALEJANDRA CERVANTES CORNIN | D30: Colombia | E30: Atlántico | F30: SOLEDAD | G30: TECNICO | H30: AUXILIAR DE ARCHIVO | I30: 03 de Noviembre de 2020 | J30: 30 de Noviembre de 2020 | K30: 1900000 | L30: 1900000 | M30: ARCHIVO CENTRAL | N30: Administrativo | O30: PRESTACION DE SERVICIO | P30: corninmia@gmail.com | Q30: =VLOOKUP(C30:C517,[1]OPS!$A$3:$C$492,3,0) -> 3106300547 | R30: 2
A31: 30 | B31: 1045706259 | C31: ANDREA CAROLINA HERRERA ORTEGA | D31: Colombia | E31: Atlántico | F31: BARRANQUILLA | G31: MEDICINA | H31: MEDICO CONSULTA EXTERNA | I31: 03 de Noviembre de 2020 | J31: 30 de Noviembre de 2020 | K31: 2120000 | L31: 2120000 | M31: CENTRO DE SALUD VILLA ESTADIO | N31: Asistencial | O31: PRESTACION DE SERVICIO | P31: andre_herrera@hotmail.com | Q31: =VLOOKUP(C31:C518,[1]OPS!$A$3:$C$492,3,0) -> 3007438123 | R31: 9
A32: 31 | B32: 72303740 | C32: ANDRES JOSE NAVARRO CARBONELL | D32: Colombia | E32: Bogotá D.C | F32: BOGOTÁ | G32: ADMINISTRACION DE EMPRESAS | H32: AUXILIAR ADMINISTRATIVO DE FARMACIA | I32: 03 de Noviembre de 2020 | J32: 30 de Noviembre de 2020 | K32: 3000000 | L32: 3000000 | M32: FARMACIA CENTRAL COSTA HERMOSA | N32: Asistencial | O32: PRESTACION DE SERVICIO | P32: andresnavarro79@hotmail.com | Q32: 3007604623 | R32: 5
A33: 32 | B33: 32771752 | C33: ANETHS CECILIA ARGOTE TORRES | D33: Colombia | E33: Atlántico | F33: SOLEDAD | G33: TECNICA PROFESIONAL EN SECRETARIADO | H33: AGENTE CALL CENTER | I33: 03 de Noviembre de 2020 | J33: 30 de Noviembre de 2020 | K33: 1378000 | L33: 1378000 | M33: CALL CENTER -CIUDADELA | N33: Administrativo | O33: PRESTACION DE SERVICIO | P33: ane_argot@hotmail.com | Q33: 301 5144330 | R33: 5
A34: 33 | B34: 1001821798 | C34: ANGELA JUDITH BARRIOS MEJIA | D34: Colombia | E34: Atlántico | F34: BARRANQUILLA | G34: ENFERMERIA | H34: AUXILIAR DE ENFERMERIA URGENCIAS | I34: 03 de Noviembre de 2020 | J34: 30 de Noviembre de 2020 | K34: 1653600 | L34: 1653600 | M34: CENTRO DE SALUD CIUDADELA METROPOLITANA | N34: Asistencial | O34: PRESTACION DE SERVICIO | P34: =VLOOKUP(C34:C500,[1]OPS!$A$3:$B$493,2,0) -> angelajbarriosm@gmail.com | Q34: =VLOOKUP(C34:C504,[1]OPS!$A$3:$C$502,3,0) -> 3116422164 | R34: 3
A35: 34 | B35: 1006745656 | C35: ANGIE FERNANDA BELEÑO RIVERO | D35: Colombia | E35: Atlántico | F35: MAICAO | G35: MEDICINA | H35: MEDICO DE URGENCIAS | I35: 03 de Noviembre de 2020 | J35: 30 de Noviembre de 2020 | K35: 3072000 | L35: 3072000 | M35: CENTRO DE SALUD CIUDADELA METROPOLITANA | N35: Asistencial | O35: PRESTACION DE SERVICIO | P35: a_giefer@hotmail.com | Q35: 3013438575 | R35: 2
A36: 35 | B36: 22736159 | C36: ARACELLY HERNANDEZ GARCIA | D36: Colombia | E36: Atlántico | F36: BARRANQUILLA | G36: TECNICO EN GESTION AMBIENTAL EMPRESARIAL | H36: AUXILIAR ADMINISTRATIVO TIC Y SISTEMA DE INFORMACION | I36: 03 de Noviembre de 2020 | J36: 30 de Noviembre de 2020 | K36: 2500000 | L36: 2500000 | M36: OFICINA TIC- ADMON COSTA HERMOSA | N36: Administrativo | O36: PRESTACION DE SERVICIO | P36: araisahernandez@hotmail.com | Q36: =VLOOKUP(C36:C523,[1]OPS!$A$3:$C$492,3,0) -> 3045538302 | R36: 4
A37: 36 | B37: 32869290 | C37: ARGENEDITH YEPEZ ESCALANTE | D37: Colombia | E37: Atlántico | F37: BARRANQUILLA | G37: BACHILLER ACADEMICO | H37: MEDICO DE PROMOCIÓN Y MANTENIMIENTO DE LA SALUD | I37: 03 de Noviembre de 2020 | J37: 30 de Noviembre de 2020 | K37: 2120000 | L37: 2120000 | M37: CENTRO DE SALUD MANUELA BELTRAN | N37: Asistencial | O37: PRESTACION DE SERVICIO | P37: ladoct79@hotmail.com | Q37: 3005078179 | R37: 9
A38: 37 | B38: 22741244 | C38: ARLETH PATRICIA CARRILLO GARVIN | D38: Colombia | E38: Atlántico | F38: BARRANQUILLA | G38: TECNICO | H38: ENFERMERA JEFE CNSULTA EXTERNA | I38: 03 de Noviembre de 2020 | J38: 30 de Noviembre de 2020 | K38: 2300000 | L38: 2300000 | M38: CENTRO DE SALUD 13 DE JUNIO | N38: Asistencial | O38: PRESTACION DE SERVICIO | P38: arleth_patri@hotmail.com | Q38: 3007524877 | R38: 1
A39: 38 | B39: 1001881009 | C39: ARMANDO JOSE JINETE BARRIOS | D39: Colombia | E39: Atlántico | F39: SOLEDAD | G39: TECNICO | H39: AUXILIAR DE ARCHIVO | I39: 03 de Noviembre de 2020 | J39: 30 de Noviembre de 2020 | K39: 1500000 | L39: 1500000 | M39: ARCHIVO CENTRAL | N39: Administrativo | O39: PRESTACION DE SERVICIO | P39: armando.jinete@unisimon.edu.co | Q39: 3004069002 | R39: 5
A40: 39 | B40: 8501206 | C40: AUGUSTO RAFAEL VALENCIA OCAMPO | D40: Colombia | E40: Atlántico | F40: MANATI | G40: TECNICO | H40: AUXILIAR FACTURACION URGENCIAS | I40: 03 de Noviembre de 2020 | J40: 30 de Noviembre de 2020 | K40: 1680000 | L40: 1680000 | M40: CENTRO DE SALUD 13 DE JUNIO | N40: Administrativo | O40: PRESTACION DE SERVICIO | P40: =VLOOKUP(C40:C504,[1]OPS!$A$3:$B$493,2,0) -> josimar.guette23@gmail.com | Q40: =VLOOKUP(C40:C504,[1]OPS!$A$3:$C$502,3,0) -> 3505099302 | R40: 12
A41: 40 | B41: 32855721 | C41: AYDA LUZ LUQUEZ MERCADO | D41: Colombia | E41: Atlántico | F41: SABANALARGA | G41: BACHILLER ACADEMICO | H41: AUXILIAR FACTURACION | I41: 03 de Noviembre de 2020 | J41: 30 de Noviembre de 2020 | K41: 1800000 | L41: 1800000 | M41: CENTRO DE SALUD VILLA ESTADIO | N41: Administrativo | O41: PRESTACION DE SERVICIO | P41: aidaluquez1981@hotmail.com | Q41: 3176510594 | R41: 2
A42: 41 | B42: 32826839 | C42: BEATRIZ ISABEL SANMARTIN ESCORCIA | D42: Colombia | E42: Atlántico | F42: SOLEDAD | G42: Diploma de Bachiller comercial | H42: VACUNADORA PAI WEB | I42: 03 de Noviembre de 2020 | J42: 30 de Noviembre de 2020 | K42: 1400000 | L42: 1400000 | M42: OFICNA PAI WEB -ARCHIVO CENTRAL | N42: Asistencial | O42: PRESTACION DE SERVICIO | P42: beatrizsanmartin1@hotmail.com | Q42: 3008975246 | R42: 11
A43: 42 | B43: 32780077 | C43: BELKIS BOSSIO ESCORCIA | D43: Colombia | E43: Atlántico | F43: BARRANQUILLA | G43: MEDICINA | H43: MEDICO DE URGENCIAS | I43: 03 de Noviembre de 2020 | J43: 30 de Noviembre de 2020 | K43: 3072000 | L43: 3072000 | M43: CENTRO DE SALUD CIUDADELA METROPOLITANA | N43: Asistencial | O43: PRESTACION DE SERVICIO | P43: belkisbossio@hotmail.com | Q43: 3008077199 | R43: 9
A44: 43 | B44: 22738911 | C44: BERTILDA ISABEL SIERRA DE ANGEL | D44: Colombia | E44: Atlántico | F44: BARRANQUILLA | G44: TECNICO | H44: ASISTENTE ADMINISTRATIVO -APOYO PROCESOS SIAU | I44: 03 de Noviembre de 2020 | J44: 30 de Noviembre de 2020 | K44: 2000000 | L44: 2000000 | M44: OFICINA ADMINISTRATIVA SUBGERENCIA CIENTIFICA - COSTA HERMOSA | N44: Administrativo | O44: PRESTACION DE SERVICIO | P44: bertilda.1@hotmail.com | Q44: 300568262 | R44: 3
A45: 44 | B45: 32736237 | C45: BETTY ROMERO RODRIGUEZ | D45: Colombia | E45: Atlántico | F45: BARRANQUILLA | G45: Diploma de Bachiller comercial | H45: PERSONAL LIMPIEZA Y ASEO URGENCIA | I45: 03 de Noviembre de 2020 | J45: 30 de Noviembre de 2020 | K45: 1653600 | L45: 1653600 | M45: CENTRO DE SALUD CIUDADELA METROPOLITANA | N45: Administrativo | O45: PRESTACION DE SERVICIO | P45: bettyromeror@outlook.com | Q45: 3233693051 | R45: 4
A46: 45 | B46: 72228319 | C46: BLADIMIR ALEXANDER SARMIENTO QUIÑONES | D46: Colombia | E46: Atlántico | F46: BARRANQUILLA | G46: TECNICO PROFESIONAL EN ELECTRONICA | H46: TECNICO EN SISTEMAS Y ELECTRONICO | I46: 03 de Noviembre de 2020 | J46: 30 de Noviembre de 2020 | K46: 1900000 | L46: 1900000 | M46: OFICINA TIC- ADMON COSTA HERMOSA | N46: Administrativo | O46: PRESTACION DE SERVICIO | P46: sarmientobladimir@gmail.com | Q46: =VLOOKUP(C46:C533,[1]OPS!$A$3:$C$492,3,0) -> 3175855443 | R46: 4
A47: 46 | B47: 1042451224 | C47: BRAYAN ALBERTO QUERALES RAMBAO | D47: Colombia | E47: Atlántico | F47: SOLEDAD | G47: TECNICA PROFESIONAL EN ANALISIS Y PROGRAMACION DE COMPUTADORES | H47: ASISTENTE ADMINISTRATIVO -CONTRATACION BIENES Y SERVICIOS | I47: 03 de Noviembre de 2020 | J47: 30 de Noviembre de 2020 | K47: 1800000 | L47: 1800000 | M47: JURIDICA -ADMON COSTA HERMOSA | N47: Administrativo | O47: PRESTACION DE SERVICIO | P47: brayanquerales@gmail.com | Q47: 3046586360 | R47: 1
A48: 47 | B48: 7938572 | C48: BRAYNERD ALVAREZ JIMENEZ | D48: Colombia | E48: Atlántico | F48: ARJONA | G48: MEDICINA | H48: MEDICO CONSULTA EXTERNA Y CARDIOVASCULAR | I48: 03 de Noviembre de 2020 | J48: 30 de Noviembre de 2020 | K48: 4600000 | L48: 4600000 | M48: CENTRO DE SALUD VILLA ESTADIO | N48: Asistencial | O48: PRESTACION DE SERVICIO | P48: braywal@hotmail.com | Q48: 3505185592 | R48: 9
A49: 48 | B49: 1042446319 | C49: BRUNYS DEL CARMEN RAMIREZ MUÑOZ | D49: Colombia | E49: Atlántico | F49: SOLEDAD | G49: Diploma de Bachiller técnico | H49: AUXILIAR PROMOTORA EN SALUD | I49: 03 de Noviembre de 2020 | J49: 30 de Noviembre de 2020 | K49: 1458000 | L49: 1458000 | M49: CENTRO DE SALUD CIUDADELA METROPOLITANA | N49: Asistencial | O49: PRESTACION DE SERVICIO | P49: bruramirez5@gmail.com | Q49: =VLOOKUP(C49:C536,[1]OPS!$A$3:$C$492,3,0) -> 3116738275 | R49: 4
A50: 49 | B50: 5055447 | C50: CARLOS ALBERTO CARBONELL ALVAREZ | D50: Colombia | E50: Atlántico | F50: CANDELARIA CERRO DE SAN ANTONIO | G50: MEDICINA | H50: AUDITOR DE CUENTAS MEDICAS | I50: 03 de Noviembre de 2020 | J50: 30 de Noviembre de 2020 | K50: 5500000 | L50: 5500000 | M50: OFICINA ADMINISTRATIVA SUBGERENCIA CIENTIFICA - COSTA HERMOSA | N50: Administrativo | O50: PRESTACION DE SERVICIO | P50: =VLOOKUP(C50:C508,[1]OPS!$A$3:$B$493,2,0) -> carloscarbonella@yahoo.com | Q50: =VLOOKUP(C50:C513,[1]OPS!$A$3:$C$502,3,0) -> 3126667238 | R50: 6
A51: 50 | B51: 1048212084 | C51: CARLOS ANDRES LLANOS SILVERA | D51: Colombia | E51: Atlántico | F51: BARANOA | G51: TECNICA PROFESIONAL EN AUXILIAR DE ENFERMERIA | H51: AUXILIAR DE ENFERMERIA CONSULTA EXTERNA | I51: 03 de Noviembre de 2020 | J51: 30 de Noviembre de 2020 | K51: 1166000 | L51: 1166000 | M51: CENTRO DE SALUD VILLA ESTADIO | N51: Asistencial | O51: PRESTACION DE SERVICIO | P51: carllansil@gmail.com | Q51: 3132747006 | R51: 5
A52: 51 | B52: 72430814 | C52: CARLOS ANDRES MARTINEZ IBAÑEZ | D52: Colombia | E52: Atlántico | F52: SOLEDAD | G52: TECNOLOGIA EN ANALISIS Y PROGRAMACION DE COMPUTADORES | H52: AUXILIAR FACTURACION URGENCIAS | I52: 03 de Noviembre de 2020 | J52: 30 de Noviembre de 2020 | K52: 1680000 | L52: 1680000 | M52: CENTRO DE SALUD CIUDADELA METROPOLITANA | N52: Administrativo | O52: PRESTACION DE SERVICIO | P52: carlos_andres.22@hotmail.com | Q52: 3005023881 | R52: 6
A53: 52 | B53: 72003406 | C53: CARLOS ANDRES PEREZ SERGE | D53: Colombia | E53: Atlántico | F53: BARRANQUILLA | G53: DERECHO | H53: ABOGADO EXTERNO | I53: 03 de Noviembre de 2020 | J53: 30 de Noviembre de 2020 | K53: 4500000 | L53: 4500000 | M53: JURIDICA -ADMON COSTA HERMOSA | N53: Administrativo | O53: PRESTACION DE SERVICIO | P53: dr.carlosmas@hotmail.com | Q53: 3006133639 | R53: 7
A54: 53 | B54: 72238499 | C54: CARLOS ANTONIO MATTOS MIRANDA | D54: Colombia | E54: Atlántico | F54: BARRANQUILLA | G54: BACHILLER ACADEMICO | H54: REFERENCIA Y CONTRAREFERENCIA | I54: 03 de Noviembre de 2020 | J54: 30 de Noviembre de 2020 | K54: 1776000 | L54: 1776000 | M54: CENTRO DE SALUD CIUDADELA METROPOLITANA | N54: Asistencial | O54: PRESTACION DE SERVICIO | P54: miranmattos@hotmail.com | Q54: 3017258085 | R54: 7
A55: 54 | B55: 1046873154 | C55: CARLOS AUGUSTO ANGULO BANDERA | D55: Colombia | E55: Atlántico | F55: USIACURI | G55: BACHILLER ACADEMICO | H55: ORIENTADOR | I55: 03 de Noviembre de 2020 | J55: 30 de Noviembre de 2020 | K55: 1700000 | L55: 1700000 | M55: CENTRO DE SALUD VILLA ESTADIO | N55: Administrativo | O55: PRESTACION DE SERVICIO | P55: carlosangulobandera@gmail.com | Q55: =VLOOKUP(C55:C542,[1]OPS!$A$3:$C$492,3,0) -> 3136084919 | R55: 8
A56: 55 | B56: 1001934574 | C56: CARLOS MARIO HERAS CORCHO | D56: Colombia | E56: Atlántico | F56: SUAN | G56: MEDICINA | H56: MEDICO CONSULTA EXTERNA- EMERGENCIA COVID19 | I56: 03 de Noviembre de 2020 | J56: 30 de Noviembre de 2020 | K56: 5600000 | L56: 5600000 | M56: CENTRO DE SALUD COSTA HERMOSA | N56: Asistencial | O56: PRESTACION DE SERVICIO | P56: heras_27@hotmail.com | Q56: 3046588039 | R56: 4
A57: 56 | B57: 22549719 | C57: CARMEN MELINA BOLAÑO COTES | D57: Colombia | E57: Atlántico | F57: BARRANQUILLA | G57: TECNICO | H57: AUXILIAR ADMINISTRATIVO ESTADISTICA | I57: 03 de Noviembre de 2020 | J57: 30 de Noviembre de 2020 | K57: 2500000 | L57: 2500000 | M57: ESTADISTICA -ADMON COSTA HERMOSA | N57: Administrativo | O57: PRESTACION DE SERVICIO | P57: =VLOOKUP(C57:C515,[1]OPS!$A$3:$B$493,2,0) -> nenabolcot2@gmail.com | Q57: =VLOOKUP(C57:C520,[1]OPS!$A$3:$C$502,3,0) -> 3008157338 | R57: 1
A58: 57 | B58: 44158949 | C58: CARMEN PACHECO VARELA | D58: Colombia | E58: Atlántico | F58: SOLEDAD | G58: Cinco (5) años de educación básica Secundaria | H58: PERSONAL LIMPIEZA Y ASEO URGENCIA | I58: 03 de Noviembre de 2020 | J58: 30 de Noviembre de 2020 | K58: 1653600 | L58: 1653600 | M58: CENTRO DE SALUD 13 DE JUNIO | N58: Administrativo | O58: PRESTACION DE SERVICIO | P58: pachecocarmen1306@gmail.com | Q58: 3017254373 | R58: 5
A59: 58 | B59: 32618430 | C59: CARMEN ROBLES DE LASCARRO | D59: Colombia | E59: Atlántico | F59: BARRANQUILLA | G59: Cuatro (4) años de educación básica Secundaria | H59: PERSONAL LIMPIEZA Y ASEO URGENCIA | I59: 03 de Noviembre de 2020 | J59: 30 de Noviembre de 2020 | K59: 1653600 | L59: 1653600 | M59: CENTRO DE SALUD CIUDADELA METROPOLITANA | N59: Administrativo | O59: PRESTACION DE SERVICIO | P59: carmenlascarro05@hotmail.com | Q59: 3184307528 | R59: 11
A60: 59 | B60: 1140889995 | C60: CAROLAY JHOANA LUNA GOMEZ | D60: Colombia | E60: Atlántico | F60: BARRANQUILLA | G60: TECNICO | H60: ASISTENTE ADMINISTRATIVO COORDINACION MEDICA | I60: 03 de Noviembre de 2020 | J60: 30 de Noviembre de 2020 | K60: 1900000 | L60: 1900000 | M60: CENTRO DE SALUD 13 DE JUNIO | N60: Administrativo | O60: PRESTACION DE SERVICIO | P60: carolaylunagomez@hotmail.com | Q60: 3015589640 | R60: 3
A61: 60 | B61: 32712485 | C61: CASILDA LARA SOLANO | D61: Colombia | E61: Atlántico | F61: BARRANQUILLA | G61: MEDICINA | H61: MEDICO DE PROMOCIÓN Y MANTENIMIENTO DE LA SALUD | I61: 03 de Noviembre de 2020 | J61: 30 de Noviembre de 2020 | K61: 2120000 | L61: 2120000 | M61: CENTRO DE SALUD 13 DE JUNIO | N61: Asistencial | O61: PRESTACION DE SERVICIO | P61: casilarasolano@hotmail.com | Q61: 3072060 | R61: 8
A62: 61 | B62: 8762035 | C62: CESAR AUGUSTO MERIÑO ESCORCIA | D62: Colombia | E62: Magdalena | F62: CERRO SAN ANTONIO | G62: TECNICO | H62: ORIENTADOR | I62: 03 de Noviembre de 2020 | J62: 30 de Noviembre de 2020 | K62: 1270000 | L62: 1270000 | M62: ADMIISTRATIVA- COSTA HERMOSA | N62: Administrativo | O62: PRESTACION DE SERVICIO | P62: cesaraugustomerinoescorcia@gmil.com | Q62: 3006469728 | R62: 10
A63: 62 | B63: 8639410 | C63: CESAR OCTAVIO VARGAS DURAN | D63: Colombia | E63: Atlántico | F63: SABANALARGA | G63: TECNICA PROFESIONAL EN GESTION DE RECURSOS NATURALES | H63: TECNICO AMBIENTAL | I63: 03 de Noviembre de 2020 | J63: 30 de Noviembre de 2020 | K63: 2500000 | L63: 2500000 | M63: AMBIENTAL - COSTA HERMOSA | N63: Administrativo | O63: PRESTACION DE SERVICIO | P63: cvduran72@hotmail.com | Q63: 3014946534 | R63: 6
A64: 63 | B64: 1001798325 | C64: CINDY MILENA SARMIENTO MERIÑO | D64: Colombia | E64: Atlántico | F64: PONEDERA | G64: RELACIONES INTERNACIONALES | H64: ESPECIALISTA TALENTO HUMANO | I64: 03 de Noviembre de 2020 | J64: 30 de Noviembre de 2020 | K64: 5000000 | L64: 5000000 | M64: OFICINA TALENTO HUMANO -ADMON COSTA HERMOSA | N64: Administrativo | O64: PRESTACION DE SERVICIO | P64: cindymil0606@hotmail.com | Q64: 3006787970 | R64: 2
A65: 64 | B65: 1001875491 | C65: CINDY MILENA VARELA ARIAS | D65: Colombia | E65: Atlántico | F65: SOLEDAD | G65: TECNOLOGIA EN SECRETARIADO EJECUTIVO CON ENFASIS EN SISTEMAS | H65: PERSONAL LIMPIEZA Y ASEO | I65: 03 de Noviembre de 2020 | J65: 30 de Noviembre de 2020 | K65: 1215000 | L65: 1215000 | M65: CENTRO DE SALUD MANUELA BELTRAN | N65: Administrativo | O65: PRESTACION DE SERVICIO | P65: cindymilenavarela@hotmail.com | Q65: =VLOOKUP(C65:C552,[1]OPS!$A$3:$C$492,3,0) -> 3180695955 | R65: 4
A66: 65 | B66: 1042997169 | C66: CINDY PAOLA CERA MENDOZA | D66: Colombia | E66: Atlántico | F66: SABANALARGA | G66: ECONOMIA | H66: PROFESIONAL PRESUPUESTO | I66: 03 de Noviembre de 2020 | J66: 30 de Noviembre de 2020 | K66: 3000000 | L66: 3000000 | M66: FINANCIERA -ADMON COSTA HERMOSA | N66: Administrativo | O66: PRESTACION DE SERVICIO | P66: dypaola0425@gmail.com | Q66: 3215629467 | R66: 7
A67: 66 | B67: 32769708 | C67: CLAUDIA ARENAS ALVAREZ | D67: Colombia | E67: Atlántico | F67: BARRANQUILLA | G67: ADMINISTRACION DE EMPRESAS | H67: PROFESIONAL DE APOYO A LA OFICINA DE CONTROL INTERNO | I67: 03 de Noviembre de 2020 | J67: 30 de Noviembre de 2020 | K67: 3500000 | L67: 3500000 | M67: CONTROL INTERNO -ADMON COSTA HERMOSA | N67: Administrativo | O67: PRESTACION DE SERVICIO | P67: cmarenas73@gmail.com | Q67: 3506942329 | R67: 8
A68: =+A67+1 -> 67 | B68: 1042418998 | C68: CLAUDIA AREVALO CERVANTES | D68: Colombia | E68: Atlántico | F68: BARRANQUILLA | G68: ENFERMERIA | H68: ENFERMERA JEFE DE PROMOCIÓN Y MANTENIMIENTO DE LA SALUD | I68: 03 de Noviembre de 2020 | J68: 30 de Noviembre de 2020 | K68: 2300000 | L68: 2300000 | M68: CENTRO DE SALUD CIUDADELA METROPOLITANA | N68: Asistencial | O68: PRESTACION DE SERVICIO | P68: cally_54@hotmail.com | Q68: 3232398 | R68: 4
A69: 68 | B69: 32866058 | C69: CLAUDIA CABARCAS ARROYO | D69: Colombia | E69: Atlántico | F69: SOLEDAD | G69: TRABAJO SOCIAL | H69: TRABAJADORA SOCIAL | I69: 03 de Noviembre de 2020 | J69: 30 de Noviembre de 2020 | K69: 2200000 | L69: 2200000 | M69: CENTRO DE SALUD SALAMANCA | N69: Asistencial | O69: PRESTACION DE SERVICIO | P69: cpatri_29@hotmail.com | Q69: 3176991111 | R69: 12
A70: 69 | B70: 22665320 | C70: CLAUDIA DE LA CRUZ LEYVA | D70: Colombia | E70: Atlántico | F70: CAMPO DE LA CRUZ | G70: ESPECIALIZACION EN GERENCIA DE SERVICIOS DE SALUD | H70: AUDITOR DE CALIDAD Y SERVICIOS DE SALUD | I70: 03 de Noviembre de 2020 | J70: 30 de Noviembre de 2020 | K70: 5800000 | L70: 5800000 | M70: ADMON COSTA HERMOSA | N70: Administrativo | O70: PRESTACION DE SERVICIO | P70: clau_juli2804@hotmail.com | Q70: 3002057831 | R70: 2
A71: 70 | B71: 32749353 | C71: CLAUDIA VALENCIA AGUDELO | D71: Colombia | E71: Atlántico | F71: BARRANQUILLA | G71: TECNICA PROFESIONAL EN AUXILIAR DE ENFERMERIA | H71: AUXILIAR DE ENFERMERIA DE RUTA INTEGRAL MATERNO PERINATAL | I71: 03 de Noviembre de 2020 | J71: 30 de Noviembre de 2020 | K71: 1399200 | L71: 1399200 | M71: CENTRO DE SALUD CIUDADELA METROPOLITANA | N71: Asistencial | O71: PRESTACION DE SERVICIO | P71: preciosa-clau72@hotmail.com | Q71: 3351075 | R71: 8
A72: 71 | B72: 32818534 | C72: CONSUELO MENDOZA CASTRO | D72: Colombia | E72: Atlántico | F72: SOLEDAD | G72: TECNICA PROFESIONAL EN AUXILIAR DE ENFERMERIA | H72: AUXILIAR DE ENFERMERIA DE RUTA INTEGRAL MATERNO PERINATAL | I72: 03 de Noviembre de 2020 | J72: 30 de Noviembre de 2020 | K72: 1166000 | L72: 1166000 | M72: CENTRO DE SALUD CIUDADELA METROPOLITANA | N72: Asistencial | O72: PRESTACION DE SERVICIO | P72: jovifo2001@hotmail.com | Q72: 3014554703 | R72: 12
A73: 72 | B73: 50959927 | C73: CONSUELO YAZMIN LOBO RAMIREZ | D73: Colombia | E73: Atlántico | F73: CHINU | G73: TECNICA PROFESIONAL EN AUXILIAR DE ENFERMERIA | H73: AUXILAIR DE ENFERMERIA CONSULTA EXTERNA | I73: 03 de Noviembre de 2020 | J73: 30 de Noviembre de 2020 | K73: 1166000 | L73: 1166000 | M73: CENTRO DE SALUD CIUDADELA METROPOLITANA | N73: Asistencial | O73: PRESTACION DE SERVICIO | P73: consuelolobo66@gmail.com | Q73: 3004764112 | R73: 7
A74: 73 | B74: 72193875 | C74: CRISTIAN DE JESUS BARRAZA VILLALBA | D74: Colombia | E74: Atlántico | F74: BARRANQUILLA | G74: TECNICA PROFESIONAL EN ATENCION A USUARIOS DE SALUD | H74: CONDUCTOR DE AMBULANCIA | I74: 03 de Noviembre de 2020 | J74: 30 de Noviembre de 2020 | K74: 2160000 | L74: 2160000 | M74: CENTRO DE SALUD CIUDADELA METROPOLITANA | N74: Asistencial | O74: PRESTACION DE SERVICIO | P74: cristian_fabian_jesus@hotmail.com | Q74: 3113833 | R74: 4
A75: 74 | B75: 1043611198 | C75: CRISTIAN JESUS RODRIGUEZ QUIROZ | D75: Colombia | E75: Atlántico | F75: SUAN | G75: CONTADURIA PUBLICA | H75: PROFESIONAL DE APOYO A LA OFICINA DE CONTROL INTERNO | I75: 03 de Noviembre de 2020 | J75: 30 de Noviembre de 2020 | K75: 3000000 | L75: 3000000 | M75: CONTROL INTERNO -ADMON COSTA HERMOSA | N75: Administrativo | O75: PRESTACION DE SERVICIO | P75: crisroqui1995@hotmail.es | Q75: =VLOOKUP(C75:C562,[1]OPS!$A$3:$C$492,3,0) -> 3217555439 | R75: 2
A76: 75 | B76: 32896364 | C76: DAILYS CAROLINA PEREZ GUETTE | D76: Colombia | E76: Atlántico | F76: BARRANQUILLA | G76: ODONTOLOGIA | H76: ODONTOLOGO | I76: 03 de Noviembre de 2020 | J76: 30 de Noviembre de 2020 | K76: 1900000 | L76: 1900000 | M76: CENTRO DE SALUD MANUELA BELTRAN | N76: Asistencial | O76: PRESTACION DE SERVICIO | P76: daicar9@gmail.com | Q76: 3225614934 | R76: 5
A77: 76 | B77: 72436677 | C77: DANILO ENRIQUE GRAVINI DE LA HOZ | D77: Colombia | E77: Atlántico | F77: SOLEDAD | G77: TECNICA PROFESIONAL EN AUXILIAR DE ENFERMERIA | H77: AUXILIAR DE ENFERMERIA URGENCIAS | I77: 03 de Noviembre de 2020 | J77: 30 de Noviembre de 2020 | K77: 1653600 | L77: 1653600 | M77: CENTRO DE SALUD CIUDADELA METROPOLITANA | N77: Asistencial | O77: PRESTACION DE SERVICIO | P77: danilogravini1985@hotmail.com | Q77: 3005572252 | R77: 7
A78: 77 | B78: 1042442558 | C78: DANISA PAOLA BARRIOS DE ALBA | D78: Colombia | E78: Atlántico | F78: SOLEDAD | G78: NUTRICION Y DIETETICA | H78: NUTRICIONISTA | I78: 03 de Noviembre de 2020 | J78: 30 de Noviembre de 2020 | K78: 2760000 | L78: 2760000 | M78: CENTRO DE SALUD 13 DE JUNIO | N78: Asistencial | O78: PRESTACION DE SERVICIO | P78: danytauro2321@hotmail.com | Q78: 3006642516 | R78: 3
A79: 78 | B79: 1042424953 | C79: DARWIN HERNAN RACEDO PAREDES | D79: Colombia | E79: Atlántico | F79: SOLEDAD | G79: ENFERMERIA | H79: PROFESIONAL DE APOYO A COORDINACION URGENCIAS | I79: 03 de Noviembre de 2020 | J79: 30 de Noviembre de 2020 | K79: 3000000 | L79: 3000000 | M79: CENTRO DE SALUD COSTA HERMOSA | N79: Administrativo | O79: PRESTACION DE SERVICIO | P79: rpdarwin_17@hotmail.com | Q79: 3887759 | R79: 4
A80: 79 | B80: 1129529382 | C80: DAVID ALEJANDRO MIRANDA TORO | D80: Colombia | E80: Atlántico | F80: MEDELLIN | G80: MEDICINA | H80: MEDICO DE URGENCIAS | I80: 03 de Noviembre de 2020 | J80: 30 de Noviembre de 2020 | K80: 3072000 | L80: 3072000 | M80: CENTRO DE SALUD CIUDADELA METROPOLITANA | N80: Asistencial | O80: PRESTACION DE SERVICIO | P80: =VLOOKUP(C80:C538,[1]OPS!$A$3:$B$493,2,0) -> davidtor_07@outlook.es | Q80: =VLOOKUP(C80:C543,[1]OPS!$A$3:$C$502,3,0) -> 3043862376 | R80: 3
A81: 80 | B81: 1042436934 | C81: DAYANA PAOLA TORRES SOLANO | D81: Colombia | E81: Atlántico | F81: BARRANQUILLA | G81: MEDICINA | H81: MEDICO DE URGENCIAS | I81: 03 de Noviembre de 2020 | J81: 30 de Noviembre de 2020 | K81: =3072000+2120000 -> 5192000 | L81: 5192000 | M81: CENTRO DE SALUD CIUDADELA METROPOLITANA | N81: Asistencial | O81: PRESTACION DE SERVICIO | P81: dayanpol216@gmail.com | Q81: 3017260419 | R81: 3
A82: 81 | B82: 8770908 | C82: DEMETRIO JOSE ALBINO CASTRO | D82: Colombia | E82: La Guajira | F82: MAICAO | G82: TECNICO PROFESIONAL EN SISTEMAS E INFORMATICA | H82: AUXILIAR FACTURACION URGENCIAS | I82: 03 de Noviembre de 2020 | J82: 30 de Noviembre de 2020 | K82: 1680000 | L82: 1680000 | M82: CENTRO DE SALUD CIUDADELA METROPOLITANA | N82: Administrativo | O82: PRESTACION DE SERVICIO | P82: albinodemetrio@yahoo.com | Q82: 3059048384 | R82: 8
A83: 82 | B83: 1042436213 | C83: DESIRET PAOLA PINTO NARVAEZ | D83: Colombia | E83: Atlántico | F83: BARRANQUILLA | G83: ENFERMERIA | H83: ENFERMERA JEFE URGENCIAS | I83: 03 de Noviembre de 2020 | J83: 30 de Noviembre de 2020 | K83: 2280000 | L83: 2280000 | M83: CENTRO DE SALUD CIUDADELA METROPOLITANA | N83: Asistencial | O83: PRESTACION DE SERVICIO | P83: desy0103@hotmail.com | Q83: 3979707 | R83: 3
A84: 83 | B84: 1082405551 | C84: DESIRETH ESTRADA FERNANDEZ | D84: Colombia | E84: Atlántico | F84: PUEBLOVIEJO | G84: ENFERMERIA | H84: ENFERMERA JEFE DE PROMOCIÓN Y MANTENIMIENTO DE LA SALUD | I84: 03 de Noviembre de 2020 | J84: 30 de Noviembre de 2020 | K84: 2300000 | L84: 2300000 | M84: CENTRO DE SALUD 13 DE JUNIO | N84: Asistencial | O84: PRESTACION DE SERVICIO | P84: chiqui_lay@hotmail.com | Q84: 3007265725 | R84: 8
A85: 84 | B85: 22585192 | C85: DIANA LUZ ACOSTA DEMARES | D85: Colombia | E85: Atlántico | F85: BARRANQUILLA | G85: TECNOLOGIA EN GESTION DEL TALENTO HUMANO | H85: AUXILIAR ADMINISTRATIVO COORDINACION MEDICA | I85: 03 de Noviembre de 2020 | J85: 30 de Noviembre de 2020 | K85: 1900000 | L85: 1900000 | M85: CENTRO DE SALUD MANUELA BELTRAN | N85: Administrativo | O85: PRESTACION DE SERVICIO | P85: dianaluz1027@hotmail.com | Q85: 3014050706 | R85: 4
A86: 85 | B86: 22641416 | C86: DIANA PATRICIA SIMANCA RODRIGUEZ | D86: Colombia | E86: Atlántico | F86: SOLEDAD | G86: DERECHO | H86: AUXILIAR FACTURACION | I86: 03 de Noviembre de 2020 | J86: 30 de Noviembre de 2020 | K86: 2000000 | L86: 2000000 | M86: CENTRO DE SALUD SALAMANCA | N86: Administrativo | O86: PRESTACION DE SERVICIO | P86: dianasimancar2012@hotmail.com | Q86: 3004097955 | R86: 1
A87: 86 | B87: 22524112 | C87: DIANA SANDOVAL MANGA | D87: Colombia | E87: Atlántico | F87: SOLEDAD | G87: Diploma de Bachiller comercial | H87: ENFERMERA JEFE PROGRAMAS ESPECIALES | I87: 03 de Noviembre de 2020 | J87: 30 de Noviembre de 2020 | K87: 2300000 | L87: 2300000 | M87: CENTRO DE SALUD MACLOVIA | N87: Asistencial | O87: PRESTACION DE SERVICIO | P87: danissandoval@hotmail.com | Q87: 3013088545 | R87: 8
A88: 87 | B88: 8568512 | C88: DIDIER ALFREDO DE LA HOZ ACOSTA | D88: Colombia | E88: Atlántico | F88: BARRANQUILLA | G88: MEDICINA | H88: MEDICO DE URGENCIAS | I88: 03 de Noviembre de 2020 | J88: 30 de Noviembre de 2020 | K88: 3072000 | L88: 3072000 | M88: CENTRO DE SALUD CIUDADELA METROPOLITANA | N88: Asistencial | O88: PRESTACION DE SERVICIO | P88: didierdelahoz@hotmail.com | Q88: 3197281272 | R88: 8
A89: 88 | B89: 1052949649 | C89: DILIANA GARCIA JIMENEZ | D89: Colombia | E89: Atlántico | F89: MAGANGUE | G89: ENFERMERIA | H89: ENFERMERA JEFE URGENCIAS | I89: 03 de Noviembre de 2020 | J89: 30 de Noviembre de 2020 | K89: 2280000 | L89: 2280000 | M89: CENTRO DE SALUD CIUDADELA METROPOLITANA | N89: Asistencial | O89: PRESTACION DE SERVICIO | P89: delipegui_1992@hotmail.com | Q89: =VLOOKUP(C89:C576,[1]OPS!$A$3:$C$492,3,0) -> 3145317778 | R89: 4
A90: 89 | B90: 1007608266 | C90: DILUVINA LUZ VALENCIA LLANOS | D90: Colombia | E90: Atlántico | F90: BARRANQUILLA | G90: TECNICO | H90: AUXILIAR DE ENFERMERIA URGENCIAS | I90: 03 de Noviembre de 2020 | J90: 30 de Noviembre de 2020 | K90: 1653600 | L90: 1653600 | M90: CENTRO DE SALUD 13 DE JUNIO | N90: Asistencial | O90: PRESTACION DE SERVICIO | P90: diluvalencia07@gmail.com | Q90: 302569845 | R90: 5
A91: 90 | B91: 1042420928 | C91: DINA DEL CARMEN CUELLO DONADO | D91: Colombia | E91: Atlántico | F91: SOLEDAD | G91: TECNICA PROFESIONAL EN CONTABILIDAD Y FINANZAS | H91: AUXILIAR FACTURACION URGENCIAS | I91: 03 de Noviembre de 2020 | J91: 30 de Noviembre de 2020 | K91: 1680000 | L91: 1680000 | M91: CENTRO DE SALUD CIUDADELA METROPOLITANA | N91: Administrativo | O91: PRESTACION DE SERVICIO | P91: dicudo@hotmail.com | Q91: 3004129624 | R91: 5
A92: 91 | B92: 32854523 | C92: DINA MARGARITA GOMEZ MORALES | D92: Colombia | E92: Atlántico | F92: SABANALARGA | G92: FISIOTERAPIA | H92: FISIOTERAPEUTA | I92: 03 de Noviembre de 2020 | J92: 30 de Noviembre de 2020 | K92: 3000000 | L92: 3000000 | M92: ADMON COSTA HERMOSA | N92: Administrativo | O92: PRESTACION DE SERVICIO | P92: dinamg_2803@hotmail.com | Q92: 3016901589 | R92: 8
A93: 92 | B93: 32818082 | C93: DIVINA LUZ NIETO ZAMBRANO | D93: Colombia | E93: Atlántico | F93: SOLEDAD | G93: BASICA PRIMARIA | H93: PERSONAL LIMPIEZA Y ASEO URGENCIA | I93: 03 de Noviembre de 2020 | J93: 30 de Noviembre de 2020 | K93: 1653600 | L93: 1653600 | M93: CENTRO DE SALUD 13 DE JUNIO | N93: Administrativo | O93: PRESTACION DE SERVICIO | P93: divinaluz64@hotmail.com | Q93: 3022202400 | R93: 12
A94: 93 | B94: 32819600 | C94: DOLIS PEDROZO TORRES | D94: Colombia | E94: Bolívar | F94: MARGARITA | G94: Dos (2) años de educación básica Secundaria | H94: PERSONAL LIMPIEZA Y ASEO | I94: 03 de Noviembre de 2020 | J94: 30 de Noviembre de 2020 | K94: 1215000 | L94: 1215000 | M94: CENTRO DE SALUD MANUELA BELTRAN | N94: Administrativo | O94: PRESTACION DE SERVICIO | P94: pedrozodolis@gmail.com | Q94: 3268674 | R94: 11
A95: 94 | B95: 32769312 | C95: DORIS PADILLA MOLINA | D95: Colombia | E95: Atlántico | F95: BARRANQUILLA | G95: TECNOLOGIA EN ATENCION PREHOSPITALARIA | H95: AUXILIAR DE ODONTOLOGIA | I95: 03 de Noviembre de 2020 | J95: 30 de Noviembre de 2020 | K95: 1166000 | L95: 1166000 | M95: CENTRO DE SALUD COSTA HERMOSA | N95: Asistencial | O95: PRESTACION DE SERVICIO | P95: dorisilla5@hotmail.com | Q95: 3012941643 | R95: 4
A96: 95 | B96: 1001962873 | C96: DULCE MARIA GOMEZ MENDOZA | D96: Colombia | E96: Atlántico | F96: CAMPO DE LA CRUZ | G96: BACHILLER ACADEMICO | H96: AUXILIAR DE ENFERMERIA CONSUKTA EXTERNA | I96: 03 de Noviembre de 2020 | J96: 30 de Noviembre de 2020 | K96: 1166000 | L96: 1166000 | M96: CENTRO DE SALUD 13 DE JUNIO | N96: Asistencial | O96: PRESTACION DE SERVICIO | P96: dulcemariagamez16@gmail.com | Q96: 3045522117 | R96: 6
A97: 96 | B97: 22647051 | C97: EDELMIRA DUQUE LAMADRID | D97: Colombia | E97: Atlántico | F97: SOLEDAD | G97: FISIOTERAPIA | H97: FISIOTERAPEUTA | I97: 03 de Noviembre de 2020 | J97: 30 de Noviembre de 2020 | K97: 1900000 | L97: 1900000 | M97: CENTRO DE SALUD COSTA HERMOSA | N97: Asistencial | O97: PRESTACION DE SERVICIO | P97: ededuque02@hotmail.com | Q97: 3923868 | R97: 7
A98: 97 | B98: 72432974 | C98: EDER JOSE CASTRO PINTO | D98: Colombia | E98: Atlántico | F98: SOLEDAD | G98: BACHILLER ACADEMICO | H98: ORIENTADOR | I98: 03 de Noviembre de 2020 | J98: 30 de Noviembre de 2020 | K98: 1524000 | L98: 1524000 | M98: CENTRO DE SALUD 13 DE JUNIO | N98: Administrativo | O98: PRESTACION DE SERVICIO | P98: =VLOOKUP(C98:C556,[1]OPS!$A$3:$B$493,2,0) -> milena_405@hotmail.com | Q98: =VLOOKUP(C98:C561,[1]OPS!$A$3:$C$502,3,0) -> 3016928784 | R98: 5
A99: 98 | B99: 8735248 | C99: EDGAR CERVANTES MELGAREJO | D99: Colombia | E99: Atlántico | F99: BARRANQUILLA | G99: MEDICINA | H99: MEDICO DE PROMOCIÓN Y MANTENIMIENTO DE LA SALUD | I99: 03 de Noviembre de 2020 | J99: 30 de Noviembre de 2020 | K99: 2120000 | L99: 2120000 | M99: CENTRO DE SALUD CIUDADELA METROPOLITANA | N99: Asistencial | O99: PRESTACION DE SERVICIO | P99: EDGARCERVANTES1963@HOTMAIL.COM | Q99: 3006070713 | R99: 13
A100: 99 | B100: 72181563 | C100: EDGARDO THORNE GLENN | D100: Colombia | E100: Atlántico | F100: BARRANQUILLA | G100: ESPECIALIZACION EN ORTOPEDIA MAXILAR | H100: ODONTOLOGO | I100: 03 de Noviembre de 2020 | J100: 30 de Noviembre de 2020 | K100: 1900000 | L100: 1900000 | M100: CENTRO DE SALUD CIUDADELA METROPOLITANA | N100: Asistencial | O100: PRESTACION DE SERVICIO | P100: thornedre@hotmail.com | Q100: =VLOOKUP(C100:C587,[1]OPS!$A$3:$C$492,3,0) -> 3005322037 | R100: 6
A101: 100 | B101: 78302933 | C101: EDIE JAIR GIL | D101: Colombia | E101: Atlántico | F101: MONTELIBANO | G101: TECNOLOGIA EN RADIOLOGIA E IMAGENES DIAGNOSTICAS | H101: TECNOLOGO EN RADIOLOGIA | I101: 03 de Noviembre de 2020 | J101: 30 de Noviembre de 2020 | K101: 1800000 | L101: 1800000 | M101: CENTRO DE SALUD CIUDADELA METROPOLITANA | N101: Asistencial | O101: PRESTACION DE SERVICIO | P101: ediejairgil@hotmail.com | Q101: 3126728884 | R101: 12
A102: 101 | B102: 8601031 | C102: EDILBERTO SANJUAN ZAMORA | D102: Colombia | E102: Atlántico | F102: BARRANQUILLA | G102: TECNOLOGIA EN REGENCIA DE FARMACIA | H102: REGENTE DE FARMACIA | I102: 03 de Noviembre de 2020 | J102: 30 de Noviembre de 2020 | K102: 2280000 | L102: 2280000 | M102: CENTRO DE SALUD 13 DE JUNIO | N102: Asistencial | O102: PRESTACION DE SERVICIO | P102: edilbertosanjuanzamora18@hotmail.com | Q102: 3046757709 | R102: 2
A103: 102 | B103: 1045700355 | C103: EDUARDO LUIS PAUTH HERNANDEZ | D103: Colombia | E103: Atlántico | F103: BARRANQUILLA | G103: MEDICINA | H103: MEDICO CONSULTA EXTERNA -EMERGENCIA COVID19 | I103: 03 de Noviembre de 2020 | J103: 30 de Noviembre de 2020 | K103: 4540000 | L103: 4540000 | M103: CENTRO DE SALUD COSTA HERMOSA | N103: Asistencial | O103: PRESTACION DE SERVICIO | P103: mdpauth001@live.com | Q103: 3166049186 | R103: 6
A104: 103 | B104: 72236961 | C104: EDWARD ENRIQUE SANCHEZ URZOLA | D104: Colombia | E104: Atlántico | F104: SOLEDAD | G104: BACHILLER ACADEMICO | H104: MENSAJERO | I104: 03 de Noviembre de 2020 | J104: 30 de Noviembre de 2020 | K104: 1700000 | L104: 1700000 | M104: ADMIISTRATIVA- COSTA HERMOSA | N104: Administrativo | O104: PRESTACION DE SERVICIO | P104: edward2578@hotmail.com | Q104: 3002016078 | R104: 4
A105: 104 | B105: 8734956 | C105: EFRAIN CANTILLO GUERRERO | D105: Colombia | E105: Atlántico | F105: BARRANQUILLA | G105: BACHILLER ACADEMICO | H105: CONDUCTOR DE AMBULANCIA | I105: 03 de Noviembre de 2020 | J105: 30 de Noviembre de 2020 | K105: 2160000 | L105: 2160000 | M105: CENTRO DE SALUD 13 DE JUNIO | N105: Asistencial | O105: PRESTACION DE SERVICIO | P105: yeisoncant18@hotmail.com | Q105: 3107091892 | R105: 8
A106: 105 | B106: 8750161 | C106: EFRAIN DE LA HOZ ROCHEL | D106: Colombia | E106: Atlántico | F106: BOGOTÁ | G106: MEDICINA | H106: MEDICO CONSULTA EXTERNA | I106: 03 de Noviembre de 2020 | J106: 30 de Noviembre de 2020 | K106: 2120000 | L106: 2120000 | M106: CENTRO DE SALUD 13 DE JUNIO | N106: Asistencial | O106: PRESTACION DE SERVICIO | P106: efraindelahozr@gmail.com | Q106: 3012577248 | R106: 11
A107: 106 | B107: 22704983 | C107: EGUIS ODILA ROLONG LAGUNA | D107: Colombia | E107: Atlántico | F107: BARRANQUILLA | G107: ESPECIALIZACION EN DERECHO LABORAL | H107: ABOGADO TALENTO HUMANO | I107: 03 de Noviembre de 2020 | J107: 30 de Noviembre de 2020 | K107: 5000000 | L107: 5000000 | M107: OFICINA TALENTO HUMANO -ADMON COSTA HERMOSA | N107: Administrativo | O107: PRESTACION DE SERVICIO | P107: erola.2806@yahoo.com | Q107: 3003041067 | R107: 3
A108: 107 | B108: 1045675420 | C108: EIBANIA MOLINA VENERA | D108: Colombia | E108: Atlántico | F108: CHIVOLO | G108: TECNICA PROFESIONAL EN AUXILIAR DE ENFERMERIA | H108: AUXILIAR DE ENFERMERIA URGENCIAS | I108: 03 de Noviembre de 2020 | J108: 30 de Noviembre de 2020 | K108: 1653600 | L108: 1653600 | M108: CENTRO DE SALUD CIUDADELA METROPOLITANA | N108: Asistencial | O108: PRESTACION DE SERVICIO | P108: marijofe2110@hotmail.com | Q108: =VLOOKUP(C108:C595,[1]OPS!$A$3:$C$492,3,0) -> 301548599 | R108: 7
A109: 108 | B109: 22570149 | C109: ELENA BAENA PEÑA | D109: Colombia | E109: Atlántico | F109: POLONUEVO | G109: Diploma de Bachiller | H109: AUXILIAR FACTURACION URGENCIAS | I109: 03 de Noviembre de 2020 | J109: 30 de Noviembre de 2020 | K109: 1680000 | L109: 1680000 | M109: CENTRO DE SALUD 13 DE JUNIO | N109: Administrativo | O109: PRESTACION DE SERVICIO | P109: elebaena06@hotmail.com | Q109: =VLOOKUP(C109:C596,[1]OPS!$A$3:$C$492,3,0) -> 3185760601 | R109: 5
A110: 109 | B110: 1047350428 | C110: ELENA PATRICIA RIVAS VERONA | D110: Colombia | E110: Atlántico | F110: SANTO TOMÁS | G110: Diploma de Bachiller técnico | H110: DIGITADOR PAI WEB | I110: 03 de Noviembre de 2020 | J110: 30 de Noviembre de 2020 | K110: 1458000 | L110: 1458000 | M110: OFICNA PAI WEB -ARCHIVO CENTRAL | N110: Administrativo | O110: PRESTACION DE SERVICIO | P110: rivaselena835@gmail.com | Q110: 3016989528 | R110: 4
A111: 110 | B111: 1010083517 | C111: ELIANA MARIA MIIRANDA RODRIGUEZ | D111: Colombia | E111: Atlántico | F111: BARRANQUILLA | G111: TECNICA PROFESIONAL EN ARCHIVO | H111: AUXILIAR FACTURACION | I111: 03 de Noviembre de 2020 | J111: 30 de Noviembre de 2020 | K111: 1400000 | L111: 1400000 | M111: CENTRO DE SALUD MANUELA BELTRAN | N111: Administrativo | O111: PRESTACION DE SERVICIO | P111: elimianda8@gmail.com | Q111: 3006065370 | R111: 5
A112: 111 | B112: 8762665 | C112: ELIECER DE JESUS CALLE QUINTERO | D112: Colombia | E112: Atlántico | F112: BARRANQUILLA | G112: BACHILLER ACADEMICO | H112: TECNICO DE ALMACEN | I112: 03 de Noviembre de 2020 | J112: 30 de Noviembre de 2020 | K112: 1900000 | L112: 1900000 | M112: ALMACEN -ARCHIVO CENTRAL | N112: Administrativo | O112: PRESTACION DE SERVICIO | P112: eliecercalleq@gmail.com | Q112: 3126341051 | R112: 4
A113: 112 | B113: 8633055 | C113: ELIECER POLO CASTRO | D113: Colombia | E113: Atlántico | F113: SABANALARGA | G113: ESPECIALIZACION EN GERENCIA PUBLICA | H113: ABOGADO EXTERNO | I113: 04 de Mayo de 2020 | J113: 31 de diciembre de 2020 | K113: 5800000 | L113: 46400000 | M113: ADMIISTRATIVA- COSTA HERMOSA | N113: Administrativo | O113: PRESTACION DE SERVICIO | P113: eliecerpolo@hotmail.com | Q113: 3004904477 | R113: 8
A114: 113 | B114: 1007045398 | C114: ELIEZER VEGA ARAGON | D114: Colombia | E114: Atlántico | F114: SOLEDAD | G114: INGENIERIA INDUSTRIAL | H114: AUXILIAR DE ARCHIVO | I114: 03 de Noviembre de 2020 | J114: 30 de Noviembre de 2020 | K114: 1500000 | L114: 1500000 | M114: ARCHIVO CENTRAL | N114: Administrativo | O114: PRESTACION DE SERVICIO | P114: elvear11@gmail.com | Q114: 3004970096 | R114: 9
A115: 114 | B115: 32583401 | C115: ELSY LIZETH CHARRIS CONTRERAS | D115: Colombia | E115: Magdalena | F115: PIVIJAY | G115: MEDICINA | H115: MEDICO CONSULTA EXTERNA | I115: 03 de Noviembre de 2020 | J115: 30 de Noviembre de 2020 | K115: 2120000 | L115: 2120000 | M115: CENTRO DE SALUD EL PARQUE | N115: Asistencial | O115: PRESTACION DE SERVICIO | P115: elsyliseth@hotmail.com | Q115: 3017854533 | R115: 6
A116: 115 | B116: 1042436156 | C116: EMELY ESCORCIA MARTINEZ | D116: Colombia | E116: Atlántico | F116: SOLEDAD | G116: ENFERMERIA | H116: ENFERMERA JEFE URGENCIAS | I116: 03 de Noviembre de 2020 | J116: 30 de Noviembre de 2020 | K116: 2280000 | L116: 2280000 | M116: CENTRO DE SALUD 13 DE JUNIO | N116: Asistencial | O116: PRESTACION DE SERVICIO | P116: emely-1113@hotmail.com | Q116: 3007109691 | R116: 8
A117: 116 | B117: 22693401 | C117: EMILIA ANTONIA BARCELO DE PARRA | D117: Colombia | E117: Atlántico | F117: SOLEDAD | G117: BASICA PRIMARIA | H117: PERSONAL LIMPIEZA Y ASEO URGENCIA | I117: 03 de Noviembre de 2020 | J117: 30 de Noviembre de 2020 | K117: 1653600 | L117: 1653600 | M117: CENTRO DE SALUD 13 DE JUNIO | N117: Administrativo | O117: PRESTACION DE SERVICIO | P117: albaluz-sagitario27@hotmail.com | Q117: 3114215583 | R117: 3
A118: 117 | B118: 8718276 | C118: ENRIQUE PACHECO PACHECO | D118: Colombia | E118: Atlántico | F118: BARRANQUILLA | G118: MEDICINA | H118: MEDICO DE URGENCIAS | I118: 03 de Noviembre de 2020 | J118: 30 de Noviembre de 2020 | K118: 3072000 | L118: 3072000 | M118: CENTRO DE SALUD 13 DE JUNIO | N118: Asistencial | O118: PRESTACION DE SERVICIO | P118: enriquejapacheco@hotmail.com | Q118: 3005430021 | R118: 11
A119: 118 | B119: 32866006 | C119: ERIKA MARIA ASCENCIO MARQUEZ | D119: Colombia | E119: Atlántico | F119: BARRANQUILLA | G119: ADMINISTRACION DE EMPRESAS | H119: PROFESIONAL CONTRATACION Y SISTEMAS DE INFORMACION TALENTO HUMANO | I119: 03 de Noviembre de 2020 | J119: 30 de Noviembre de 2020 | K119: 4000000 | L119: 4000000 | M119: OFICINA TALENTO HUMANO -ADMON COSTA HERMOSA | N119: Administrativo | O119: PRESTACION DE SERVICIO | P119: erikamariaascenciomarquez@hotmail.com | Q119: 3015662582 | R119: 3
A120: 119 | B120: 8571868 | C120: ERINSON RAFAEL GUZMAN DE LA HOZ | D120: Colombia | E120: Atlántico | F120: PONEDERA | G120: SOCIOLOGIA | H120: PROFESIONAL DE APOYO CONTRATACION TALENTO HUMANO | I120: 03 de Noviembre de 2020 | J120: 30 de Noviembre de 2020 | K120: 3000000 | L120: 3000000 | M120: OFICINA TALENTO HUMANO -ADMON COSTA HERMOSA | N120: Administrativo | O120: PRESTACION DE SERVICIO | P120: guzmandelahoz@hotmail.com | Q120: 3126152281 | R120: 6
A121: 120 | B121: 1143147791 | C121: ERNESTO JUNIOR ROJANO MEZA | D121: Colombia | E121: Atlántico | F121: BARRANQUILLA | G121: TECNOLOGIA EN RADIOLOGIA E IMAGENES DIAGNOSTICAS | H121: TECNOLOGO EN RADIOLOGIA | I121: 03 de Noviembre de 2020 | J121: 30 de Noviembre de 2020 | K121: 1800000 | L121: 1800000 | M121: CENTRO DE SALUD CIUDADELA METROPOLITANA | N121: Asistencial | O121: PRESTACION DE SERVICIO | P121: erjurome-1995@hotmail.com | Q121: 3104545765 | R121: 7
A122: 121 | B122: 22467133 | C122: ESMERALDA COTE BORNACELY | D122: Colombia | E122: Atlántico | F122: BARRANQUILLA | G122: TECNICA PROFESIONAL EN AUXILIAR DE ENFERMERIA | H122: VACUNADOR(A) | I122: 03 de Noviembre de 2020 | J122: 30 de Noviembre de 2020 | K122: 1400000 | L122: 1400000 | M122: CENTRO VACUNACION MANUELA BELTRAN | N122: Asistencial | O122: PRESTACION DE SERVICIO | P122: escobor1978@hotmail.es | Q122: 3747607 | R122: 9
A123: 122 | B123: 22732766 | C123: ESMIRIS MARIA JIMENEZ GOMEZ | D123: Colombia | E123: Atlántico | F123: BARRANQUILLA | G123: BACHILLER ACADEMICO | H123: PERSONAL LIMPIEZA Y ASEO | I123: 03 de Noviembre de 2020 | J123: 30 de Noviembre de 2020 | K123: 1215000 | L123: 1215000 | M123: CENTRO DE SALUD VILLA ESTADIO | N123: Administrativo | O123: PRESTACION DE SERVICIO | P123: esmiris@hotmail.com | Q123: 3145108209 | R123: 4
A124: 123 | B124: 32821813 | C124: ESPERANZA SOFIA OROZCO MORENO | D124: Colombia | E124: Atlántico | F124: SOLEDAD | G124: TECNICA PROFESIONAL EN AUXILIAR DE ENFERMERIA | H124: AUXILIAR ENFERMERIA URGENCIA | I124: 03 de Noviembre de 2020 | J124: 30 de Noviembre de 2020 | K124: 1653600 | L124: 1653600 | M124: CENTRO DE SALUD 13 DE JUNIO | N124: Asistencial | O124: PRESTACION DE SERVICIO | P124: esperanzaorozcomoreno@hotmail.com | Q124: 3113891531 | R124: 12
A125: 124 | B125: 1002028047 | C125: ESTEBAN MEDINA QUIROZ | D125: Colombia | E125: Atlántico | F125: BARRANQUILLA | G125: TECNICO | H125: AUXILIAR RECURSOS FISICOS | I125: 03 de Noviembre de 2020 | J125: 30 de Noviembre de 2020 | K125: 1900000 | L125: 1900000 | M125: ADMIISTRATIVA- COSTA HERMOSA | N125: Administrativo | O125: PRESTACION DE SERVICIO | P125: estebandrumeo@gmail.com | Q125: 3103727433 | R125: 2
A126: 125 | B126: 44157204 | C126: ESTHER CECILIA SOLANO BARROS | D126: Colombia | E126: Atlántico | F126: SOLEDAD | G126: MEDICINA | H126: MEDICO DE URGENCIAS | I126: 03 de Noviembre de 2020 | J126: 30 de Noviembre de 2020 | K126: 3072000 | L126: 3072000 | M126: CENTRO DE SALUD CIUDADELA METROPOLITANA | N126: Asistencial | O126: PRESTACION DE SERVICIO | P126: esthersolanob@hotmail.com | Q126: 3248358 | R126: 7
A127: 126 | B127: 60311278 | C127: EVA FLOREZ PARRA | D127: Colombia | E127: Norte de Santander | F127: CÚCUTA | G127: MEDICINA | H127: MEDICO CONSULTA EXTERNA | I127: 03 de Noviembre de 2020 | J127: 30 de Noviembre de 2020 | K127: 2500000 | L127: 2500000 | M127: CENTRO DE SALUD LA ESPERANZA | N127: Asistencial | O127: PRESTACION DE SERVICIO | P127: evaruth@hotmail.com | Q127: 3004116168 | R127: 9
A128: 127 | B128: 72098736 | C128: EVARISTO RAFAEL BARRIOS DE LA ROSA | D128: Colombia | E128: Atlántico | F128: SABANAGRANDE | G128: CONTADURIA PUBLICA | H128: TECNICO DE ALMACEN | I128: 03 de Noviembre de 2020 | J128: 30 de Noviembre de 2020 | K128: 3000000 | L128: 3000000 | M128: ALMACEN -ARCHIVO CENTRAL | N128: Administrativo | O128: PRESTACION DE SERVICIO | P128: erafael09@hotmail.com | Q128: 3017079789 | R128: 4
A129: 128 | B129: 1074712390 | C129: EVELIN CRISTINA ZULETA SANCHEZ | D129: Colombia | E129: Atlántico | F129: RIOSUCIO | G129: ENFERMERIA | H129: ENFERMERA JEFE DE PROMOCIÓN Y MANTENIMIENTO DE LA SALUD | I129: 03 de Noviembre de 2020 | J129: 30 de Noviembre de 2020 | K129: 2300000 | L129: 2300000 | M129: CENTRO DE SALUD MANUELA BELTRAN | N129: Asistencial | O129: PRESTACION DE SERVICIO | P129: lagomela3@hotmail.com | Q129: 300416111 | R129: 9
A130: 129 | B130: 55237062 | C130: EVELINDA URIBE NEIRA | D130: Colombia | E130: Atlántico | F130: BARRANQUILLA | G130: ESPECIALIZACION EN SEGURIDAD SOCIAL | H130: ABOGADO EXTERNO | I130: 03 de Noviembre de 2020 | J130: 30 de Noviembre de 2020 | K130: 4000000 | L130: 4000000 | M130: JURIDICA -ADMON COSTA HERMOSA | N130: Administrativo | O130: PRESTACION DE SERVICIO | P130: evelinda84@hotmail.com | Q130: 3025896235 | R130: 2
A131: 130 | B131: 72170268 | C131: FABIAN FERNANDO MERCADO | D131: Colombia | E131: Atlántico | F131: BARRANQUILLA | G131: Cinco (5) años de educación básica Secundaria | H131: DIGITADOR PAI WEB | I131: 03 de Noviembre de 2020 | J131: 30 de Noviembre de 2020 | K131: 1458000 | L131: 1458000 | M131: OFICNA PAI WEB -ARCHIVO CENTRAL | N131: Administrativo | O131: PRESTACION DE SERVICIO | P131: fabianmercado09@gmail.com | Q131: 3006464564 | R131: 1
A132: =+A131+1 -> 131 | B132: 1045731190 | C132: FELIX ALFONSO ORTIZ GARCIA | D132: Colombia | E132: Atlántico | F132: BARRANQUILLA | G132: INGENIERIA INDUSTRIAL | H132: ORIENTADOR | I132: 03 de Noviembre de 2020 | J132: 30 de Noviembre de 2020 | K132: 1524000 | L132: 1524000 | M132: CENTRO DE SALUD CIUDADELA METROPOLITANA | N132: Administrativo | O132: PRESTACION DE SERVICIO | P132: felixortiz9611@outlook.es | Q132: 0353803498 | R132: 6
A133: 132 | B133: 8705578 | C133: FERMIN NAVARRO STEFANELL | D133: Colombia | E133: Atlántico | F133: BARRANQUILLA | G133: MEDICINA | H133: MEDICO GINECOLOGO DE RUTA INTEGRAL MATERNO PERINATAL | I133: 03 de Noviembre de 2020 | J133: 30 de Noviembre de 2020 | K133: 7500000 | L133: 7500000 | M133: CENTRO DE SALUD 13 DE JUNIO | N133: Asistencial | O133: PRESTACION DE SERVICIO | P133: glendaordoez38@hotmail.com | Q133: 3114656811 | R133: 8
A134: 133 | B134: 1045170023 | C134: FERNEY ALBERTO OROZCO QUIROZ | D134: Colombia | E134: Atlántico | F134: PONEDERA | G134: Diploma de Bachiller técnico | H134: AUXILIAR FACTURACION | I134: 03 de Noviembre de 2020 | J134: 30 de Noviembre de 2020 | K134: 1600000 | L134: 1600000 | M134: CENTRO DE SALUD MANUELA BELTRAN | N134: Administrativo | O134: PRESTACION DE SERVICIO | P134: yen_ref28@hotmail.com | Q134: =VLOOKUP(C134:C621,[1]OPS!$A$3:$C$492,3,0) -> 3014900531 | R134: 4
A135: 134 | B135: 22504159 | C135: FLOR MILENA GOICOCHEA OROZCO | D135: Colombia | E135: Atlántico | F135: BARRANQUILLA | G135: INGENIERIA DE MERCADOS | H135: AUXILIAR FACTURACION CENTRAL | I135: 03 de Noviembre de 2020 | J135: 30 de Noviembre de 2020 | K135: 2000000 | L135: 2000000 | M135: FACTURACION CENTRAL-COSTA HERMOSA | N135: Administrativo | O135: PRESTACION DE SERVICIO | P135: fmilenag@hotmail.com | Q135: 3929030 | R135: 4
A136: 135 | B136: 44159527 | C136: FLORINDA DE LA HOZ PACHECO | D136: Colombia | E136: Atlántico | F136: SOLEDAD | G136: ENFERMERIA | H136: ENFERMERA JEFE DE PROMOCIÓN Y MANTENIMIENTO DE LA SALUD | I136: 03 de Noviembre de 2020 | J136: 30 de Noviembre de 2020 | K136: 2300000 | L136: 2300000 | M136: CENTRO DE SALUD VILLA ESTADIO | N136: Asistencial | O136: PRESTACION DE SERVICIO | P136: alfpey@hotmail.com | Q136: 3008082736 | R136: 8
A137: 136 | B137: 8788794 | C137: FRAICER JOHANNES CHARRIS RUA | D137: Colombia | E137: Atlántico | F137: SOLEDAD | G137: BACHILLER ACADEMICO | H137: AUXILIAR FACTURACION URGENCIAS | I137: 03 de Noviembre de 2020 | J137: 30 de Noviembre de 2020 | K137: 1680000 | L137: 1680000 | M137: CENTRO DE SALUD 13 DE JUNIO | N137: Administrativo | O137: PRESTACION DE SERVICIO | P137: fraicersf@hotmail.com | Q137: 3003307151 | R137: 4
A138: 137 | B138: 72328953 | C138: FRANCISCO ALCIDES CARRANZA MENDOZA | D138: Colombia | E138: Atlántico | F138: BARRANQUILLA | G138: TECNOLOGIA EN ELECTRONICA | H138: AUXILIAR RECURSOS FISICOS | I138: 03 de Noviembre de 2020 | J138: 30 de Noviembre de 2020 | K138: 2500000 | L138: 2500000 | M138: ADMIISTRATIVA- COSTA HERMOSA | N138: Administrativo | O138: PRESTACION DE SERVICIO | P138: francarranza1984@gmail.com | Q138: 3007157674 | R138: 5
A139: 138 | B139: 8507198 | C139: FRANCISCO PEÑALOZA PEREZ | D139: Colombia | E139: Atlántico | F139: SOLEDAD | G139: MEDICINA | H139: MEDICO CONSULTA EXTERNA | I139: 03 de Noviembre de 2020 | J139: 30 de Noviembre de 2020 | K139: 2120000 | L139: 2120000 | M139: CENTRO DE SALUD MANUELA BELTRAN | N139: Asistencial | O139: PRESTACION DE SERVICIO | P139: franco0180@hotmail.com | Q139: 3931230 | R139: 7
A140: 139 | B140: 9132998 | C140: GABRIEL ARIAS RAMIREZ | D140: Colombia | E140: Bolívar | F140: MAGANGUÉ | G140: QUIMICA Y FARMACIA | H140: QUIMICO FARMACEUTICO | I140: 03 de Noviembre de 2020 | J140: 30 de Noviembre de 2020 | K140: 3600000 | L140: 3600000 | M140: FARMACIA CENTRAL COSTA HERMOSA | N140: Asistencial | O140: PRESTACION DE SERVICIO | P140: gar1803@hotmail.com | Q140: 3235769 | R140: 4
A141: 140 | B141: 1042416953 | C141: GABRIEL JOSE MONTIEL CERVANTES | D141: Colombia | E141: Atlántico | F141: SOLEDAD | G141: INGENIERIA DE SISTEMAS | H141: INGENIERO DE REDES Y HARDWARE | I141: 03 de Noviembre de 2020 | J141: 30 de Noviembre de 2020 | K141: 3000000 | L141: 3000000 | M141: OFICINA TIC- ADMON COSTA HERMOSA | N141: Administrativo | O141: PRESTACION DE SERVICIO | P141: gabrielmc_375@hotmail.com | Q141: 3024506 | R141: 5
A142: 141 | B142: 55305321 | C142: GELMIS SARAY MARTINEZ DIPPE | D142: Colombia | E142: Atlántico | F142: BARRANQUILLA | G142: ESPECIALIZACION EN GERENCIA Y GESTION EN DERECHOS HUMANOS | H142: AGENTE CALL CENTER | I142: 03 de Noviembre de 2020 | J142: 30 de Noviembre de 2020 | K142: 1378000 | L142: 1378000 | M142: CALL CENTER -CIUDADELA | N142: Administrativo | O142: PRESTACION DE SERVICIO | P142: gelmismartinez@yahoo.com.co | Q142: 3016863801 | R142: 7
A143: 142 | B143: 19585247 | C143: GENITO VILLAMIL CONTRERAS | D143: Colombia | E143: Magdalena | F143: CIÉNAGA | G143: BACHILLER ACADEMICO | H143: CONDUCTOR DE AMBULANCIA | I143: 03 de Noviembre de 2020 | J143: 30 de Noviembre de 2020 | K143: 2160000 | L143: 2160000 | M143: CENTRO DE SALUD 13 DE JUNIO | N143: Asistencial | O143: PRESTACION DE SERVICIO | P143: genito-240963@hotmail.com | Q143: 3057901098 | R143: 6
A144: 143 | B144: 32756610 | C144: GENNY GUZMAN NAVARRO | D144: Colombia | E144: Sucre | F144: BUENAVISTA | G144: MEDICINA | H144: MEDICO DE URGENCIAS | I144: 03 de Noviembre de 2020 | J144: 30 de Noviembre de 2020 | K144: 3072000 | L144: 3072000 | M144: CENTRO DE SALUD CIUDADELA METROPOLITANA | N144: Asistencial | O144: PRESTACION DE SERVICIO | P144: gennysofia@yahoo.es | Q144: 3014333708 | R144: 12
A145: 144 | B145: 22446125 | C145: GENOVEVA MARIA LLANES JEREZ | D145: Colombia | E145: Sucre | F145: SUCRE | G145: BACHILLER ACADEMICO | H145: VACUNADORA PAI WEB | I145: 03 de Noviembre de 2020 | J145: 30 de Noviembre de 2020 | K145: 1400000 | L145: 1400000 | M145: OFICNA PAI WEB -ARCHIVO CENTRAL | N145: Asistencial | O145: PRESTACION DE SERVICIO | P145: gjerezllanes@hotmail.com | Q145: =VLOOKUP(C145:C632,[1]OPS!$A$3:$C$492,3,0) -> 3749007 | R145: 12
A146: 145 | B146: 1042448309 | C146: GERALDINE ALEXANDRA MEDRANO IGLESIAS | D146: Colombia | E146: Atlántico | F146: SOLEDAD | G146: Diploma de Bachiller técnico comercial | H146: AUXILIAR DE ARCHIVO | I146: 03 de Noviembre de 2020 | J146: 30 de Noviembre de 2020 | K146: 1900000 | L146: 1900000 | M146: ARCHIVO CENTRAL | N146: Administrativo | O146: PRESTACION DE SERVICIO | P146: geraldinemedrano18@gmail.com | Q146: 3006033846 | R146: 3
A147: 146 | B147: 1042448518 | C147: GIANINA ANDREA GRAVINI DE LA HOZ | D147: Colombia | E147: Atlántico | F147: SOLEDAD | G147: MEDICINA | H147: MEDICO DE URGENCIAS | I147: 03 de Noviembre de 2020 | J147: 30 de Noviembre de 2020 | K147: 3072000 | L147: 3072000 | M147: CENTRO DE SALUD 13 DE JUNIO | N147: Asistencial | O147: PRESTACION DE SERVICIO | P147: gianina0704@hotmail.com | Q147: 3012313501 | R147: 4
A148: 147 | B148: 57105067 | C148: GIINA LETICIA MARCOS FERNANDEZ | D148: Colombia | E148: Atlántico | F148: ARACATACA | G148: PROFESIONAL | H148: PROFESIONAL ESTADISTICA | I148: 03 de Noviembre de 2020 | J148: 30 de Noviembre de 2020 | K148: 5000000 | L148: 5000000 | M148: ESTADISTICA -ADMON COSTA HERMOSA | N148: Administrativo | O148: PRESTACION DE SERVICIO | P148: =VLOOKUP(C148:C606,[1]OPS!$A$3:$B$493,2,0) -> gina_marcos@hotmail.com | Q148: =VLOOKUP(C148:C611,[1]OPS!$A$3:$C$502,3,0) -> 3046715353 | R148: 5
A149: 148 | B149: 8634413 | C149: GIL ANTONIO BERDUGO NOVA | D149: Colombia | E149: Atlántico | F149: SABANALARGA | G149: TECNICO | H149: AUXILIAR DE ENFERMERIA URGENCIAS | I149: 03 de Noviembre de 2020 | J149: 30 de Noviembre de 2020 | K149: 1653600 | L149: 1653600 | M149: CENTRO DE SALUD 13 DE JUNIO | N149: Asistencial | O149: PRESTACION DE SERVICIO | P149: gilberdugo3@gmail.com | Q149: =VLOOKUP(C149:C636,[1]OPS!$A$3:$C$492,3,0) -> 3002198896 | R149: 4
A150: 149 | B150: 32825276 | C150: GIOVANNA ESTHER AFRICANO NAVARRO | D150: Colombia | E150: Atlántico | F150: SOLEDAD | G150: NUTRICION Y DIETETICA | H150: NUTRICIONISTA | I150: 03 de Noviembre de 2020 | J150: 30 de Noviembre de 2020 | K150: 2760000 | L150: 2760000 | M150: CENTRO DE SALUD CIUDADELA METROPOLITANA | N150: Asistencial | O150: PRESTACION DE SERVICIO | Q150: 3046813226 | R150: 2
A151: 150 | B151: 22551160 | C151: GISELL MILENA HERRERA ZUÑIGA | D151: Colombia | E151: Atlántico | F151: BARRANQUILLA | G151: MEDICINA | H151: MEDICO CONSULTA EXTERNA | I151: 03 de Noviembre de 2020 | J151: 30 de Noviembre de 2020 | K151: 2120000 | L151: 2120000 | M151: CENTRO DE SALUD EL PARQUE | N151: Asistencial | O151: PRESTACION DE SERVICIO | P151: gisellherrera96@gmail.com | Q151: 3016503549 | R151: 3
A152: 151 | B152: 1042448135 | C152: GISELLA CAMILA ACOSTA SEGURA | D152: Colombia | E152: Atlántico | F152: SOLEDAD | G152: Diploma de Bachiller | H152: PROMOTORA EN SALUD- TECNICO EN SALUD PUBLICA | I152: 03 de Noviembre de 2020 | J152: 30 de Noviembre de 2020 | K152: 1500000 | L152: 1500000 | M152: CENTRO DE SALUD MANUELA BELTRAN | N152: Asistencial | O152: PRESTACION DE SERVICIO | P152: gissella-acosta-segura@hotmail.com | Q152: 3012597710 | R152: 1
A153: 152 | B153: 44156926 | C153: GLADYS CECILIA ESCALANTE FERRER | D153: Colombia | E153: Atlántico | F153: SOLEDAD | G153: ESPECIALIZACION EN AUDITORIA DE SERVICIOS DE SALUD | H153: AUDITOR DE CALIDAD Y SERVICIOS DE SALUD | I153: 03 de Noviembre de 2020 | J153: 30 de Noviembre de 2020 | K153: 4000000 | L153: 4000000 | M153: OFICINA ADMINISTRATIVA SUBGERENCIA CIENTIFICA - COSTA HERMOSA | N153: Administrativo | O153: PRESTACION DE SERVICIO | P153: gefexitosa1a@hotmail.com | Q153: 3424254 | R153: 12
A154: 153 | B154: 49555306 | C154: GLADYS DIAZ MARIN | D154: Colombia | E154: Cesar | F154: CURUMANÍ | G154: TECNICA EN MERCADEO Y VENTAS | H154: AUXILIAR FACTURACION URGENCIAS | I154: 03 de Noviembre de 2020 | J154: 30 de Noviembre de 2020 | K154: 1680000 | L154: 1680000 | M154: CENTRO DE SALUD 13 DE JUNIO | N154: Administrativo | O154: PRESTACION DE SERVICIO | P154: gladysdiazmarin13@hotmail.com | Q154: 3002337087 | R154: 12
A155: 154 | B155: 22644596 | C155: GRACIELA BUSTOS RIVEROS | D155: Colombia | E155: Atlántico | F155: SOLEDAD | G155: INGENIERIA DE SISTEMAS Y COMPUTACION | H155: AUXILIAR ADMINISTRATIVO FACTURACIÒN | I155: 03 de Noviembre de 2020 | J155: 30 de Noviembre de 2020 | K155: 2000000 | L155: 2000000 | M155: FACTURACION CENTRAL-COSTA HERMOSA | N155: Administrativo | O155: PRESTACION DE SERVICIO | P155: gbustos17@hotmail.com | Q155: 3215391806 | R155: 5
A156: 155 | B156: 85468633 | C156: GREGORIO RUIZ PACHECO | D156: Colombia | E156: Magdalena | F156: SANTA MARTA | G156: DERECHO | H156: ABOGADO EXTERNO TALENTO HUMANO | I156: 03 de Noviembre de 2020 | J156: 30 de Noviembre de 2020 | K156: 4000000 | L156: 4000000 | M156: OFICINA TALENTO HUMANO -ADMON COSTA HERMOSA | N156: Administrativo | O156: PRESTACION DE SERVICIO | P156: gruizp@dane.gov.co | Q156: 3008177517 | R156: 4
A157: 156 | B157: 72203756 | C157: GUILLERMO DE JESUS MEDINA VASQUEZ | D157: Colombia | E157: Atlántico | F157: BARRANQUILLA | G157: TECNOLOGIA EN GESTION ADMINISTRATIVA | H157: AUXILIAR ADMINISTRATIVO - CALL CENTER | I157: 03 de Noviembre de 2020 | J157: 30 de Noviembre de 2020 | K157: 2100000 | L157: 2100000 | M157: CENTRO DE SALUD CIUDADELA METROPOLITANA | N157: Administrativo | O157: PRESTACION DE SERVICIO | P157: guillomedinavasquez74@gmail.com | Q157: 3426586 | R157: 3
A158: 157 | B158: 1064976268 | C158: GUSTAVO ADOLFO ARAUJO GALVAN | D158: Colombia | E158: Córdoba | F158: CERETÉ | G158: MEDICINA | H158: MEDICO DE URGENCIAS | I158: 03 de Noviembre de 2020 | J158: 30 de Noviembre de 2020 | K158: 6144000 | L158: 6144000 | M158: CENTRO DE SALUD 13 DE JUNIO | N158: Asistencial | O158: PRESTACION DE SERVICIO | P158: garaujo380@gmail.com | Q158: 3012790567 | R158: 5
A159: 158 | B159: 19619279 | C159: GUSTAVO SEGUNDO FLORIDO HATUN | D159: Colombia | E159: Atlántico | F159: ARACATACA | G159: ODONTOLOGIA | H159: AUDITOR DE CALIDAD Y SERVICIOS DE SALUD | I159: 03 de Noviembre de 2020 | J159: 30 de Noviembre de 2020 | K159: 5000000 | L159: 5000000 | M159: OFICINA ADMINISTRATIVA SUBGERENCIA CIENTIFICA - COSTA HERMOSA | N159: Administrativo | O159: PRESTACION DE SERVICIO | P159: gustavofloridoone@hotmail.com | Q159: =VLOOKUP(C159:C646,[1]OPS!$A$3:$C$492,3,0) -> 3216876136 | R159: 7
A160: 159 | B160: 30568187 | C160: HAIDE MEJIA PRADO | D160: Colombia | E160: Córdoba | F160: SAHAGÚN | G160: BACHILLER ACADEMICO | H160: PERSONAL LIMPIEZA Y ASEO URGENCIA | I160: 03 de Noviembre de 2020 | J160: 30 de Noviembre de 2020 | K160: 1653600 | L160: 1653600 | M160: CENTRO DE SALUD CIUDADELA METROPOLITANA | N160: Administrativo | O160: PRESTACION DE SERVICIO | P160: melissam0312@hotmail.com | Q160: 3185922199 | R160: 10
A161: 160 | B161: 8767993 | C161: HAROLD MANUEL CABARCAS GONZALEZ | D161: Colombia | E161: Atlántico | F161: SOLEDAD | G161: TECNICA PROFESIONAL EN AUXILIAR DE ENFERMERIA | H161: VACUNADOR(A) | I161: 03 de Noviembre de 2020 | J161: 30 de Noviembre de 2020 | K161: 1400000 | L161: 1400000 | M161: CENTRO VACUNACION MANUELA BELTRAN | N161: Asistencial | O161: PRESTACION DE SERVICIO | P161: haroldmcg@hotmail.com | Q161: 3173530704 | R161: 12
A162: 161 | B162: 22617736 | C162: HEIDI GRAVINI DE LA CRUZ | D162: Colombia | E162: Atlántico | F162: SOLEDAD | G162: TECNICA PROFESIONAL EN ADMINISTRACION DE RECURSOS HUMANOS | H162: AGENTE CALL CENTER | I162: 03 de Noviembre de 2020 | J162: 30 de Noviembre de 2020 | K162: 1378000 | L162: 1378000 | M162: CALL CENTER -CIUDADELA | N162: Administrativo | O162: PRESTACION DE SERVICIO | P162: heidygravini01@gmail.com | Q162: 3012649898 | R162: 1
A163: 162 | B163: 1143449271 | C163: HELEN YIRE MALDONADO MIRANDA | D163: Colombia | E163: Atlántico | F163: CARACAS | G163: TECNOLOGIA EN CONTABILIDAD Y FINANZAS | H163: AUXILIAR DE ODONTOLOGIA | I163: 03 de Noviembre de 2020 | J163: 30 de Noviembre de 2020 | K163: 1166000 | L163: 1166000 | M163: CENTRO DE SALUD EL PARQUE | N163: Asistencial | O163: PRESTACION DE SERVICIO | P163: helenmiranda0405@gmail.com | Q163: 3024326442 | R163: 1
A164: 163 | B164: 8636166 | C164: HERNANDO RAFAEL SOLANO OLIVERO | D164: Colombia | E164: Atlántico | F164: SABANALARGA | G164: BACHILLER ACADEMICO | H164: AUXILIAR DE ARCHIVO | I164: 03 de Noviembre de 2020 | J164: 30 de Noviembre de 2020 | K164: 1900000 | L164: 1900000 | M164: ARCHIVO CENTRAL | N164: Administrativo | O164: PRESTACION DE SERVICIO | P164: hersololi55@gmail.com | Q164: 3146172686 | R164: 1
A165: 164 | B165: 1045670289 | C165: HOLMAN ALEXANDER AVILA FERNANDEZ | D165: Colombia | E165: Atlántico | F165: BARRANQUILLA | G165: INGENIERIA INDUSTRIAL | H165: AUXILIAR FACTURACION | I165: 03 de Noviembre de 2020 | J165: 30 de Noviembre de 2020 | K165: 3000000 | L165: 3000000 | M165: CENTRO DE SALUD LA ESPERANZA | N165: Administrativo | O165: PRESTACION DE SERVICIO | P165: havilafernandez@gmail.com | Q165: 3104951931 | R165: 1
A166: 165 | B166: 64578458 | C166: ILDA DEL PILAR PACHECO AGUIRRE | D166: Colombia | E166: Atlántico | F166: TOLUVIEJO | G166: TECNICA PROFESIONAL EN INSTRUMENTACION QUIRURGICA | H166: VACUNADOR(A) | I166: 03 de Noviembre de 2020 | J166: 30 de Noviembre de 2020 | K166: 1400000 | L166: 1400000 | M166: CENTRO VACUNACION MANUELA BELTRAN | N166: Asistencial | O166: PRESTACION DE SERVICIO | P166: pilaraguirre23@hotmail.com | Q166: 3004701301 | R166: 3
A167: 166 | B167: 1042445376 | C167: INDIRA DAYANA CERVANTES MENDIVILL | D167: Colombia | E167: Atlántico | F167: SOLEDAD | G167: PSICOLOGIA | H167: PSICOLOGA | I167: 03 de Noviembre de 2020 | J167: 30 de Noviembre de 2020 | K167: 3000000 | L167: 3000000 | M167: CENTRO DE SALUD VILLA ESTADIO | N167: Asistencial | O167: PRESTACION DE SERVICIO | P167: indicervantes_14@hotmail.com | Q167: 3206387716 | R167: 3
A168: 167 | B168: 32861543 | C168: INGRID NAVARRO CARRILLO | D168: Colombia | E168: Atlántico | F168: SOLEDAD | G168: ESPECIALIZACION EN SALUD OCUPACIONAL | H168: FISIOTERAPEUTA | I168: 03 de Noviembre de 2020 | J168: 30 de Noviembre de 2020 | K168: 5800000 | L168: 5800000 | M168: CENTRO DE SALUD 13 DE JUNIO | N168: Asistencial | O168: PRESTACION DE SERVICIO | P168: fisioterapeuta98@hotmail.com | Q168: 3024121915 | R168: 12
A169: 168 | B169: 32822389 | C169: ISABEL AMÉRICA DE ALBA RODRIGUEZ | D169: Colombia | E169: Atlántico | F169: SOLEDAD | G169: BACHILLER ACADEMICO | H169: AUXILIAR FACTURACION | I169: 03 de Noviembre de 2020 | J169: 30 de Noviembre de 2020 | K169: 1400000 | L169: 1400000 | M169: CENTRO DE SALUD LA ESPERANZA | N169: Administrativo | O169: PRESTACION DE SERVICIO | P169: chabedealba@hotmail.com | Q169: 3014737053 | R169: 12
A170: 169 | B170: 32619158 | C170: ISABEL HERRERA PACHECO | D170: Colombia | E170: Atlántico | F170: SOLEDAD | G170: BACHILLER ACADEMICO | H170: VACUNADORA PAI WEB | I170: 03 de Noviembre de 2020 | J170: 30 de Noviembre de 2020 | K170: 1400000 | L170: 1400000 | M170: OFICNA PAI WEB -ARCHIVO CENTRAL | N170: Asistencial | O170: PRESTACION DE SERVICIO | P170: isabelherrera58@hotmail.com | Q170: 3017378332 | R170: 12
A171: 170 | B171: 32816898 | C171: ISABEL OSORIO BARRIOS | D171: Colombia | E171: Atlántico | F171: SOLEDAD | G171: TECNOLOGIA EN SALUD COMUNITARIA | H171: VACUNADORA PAI WEB | I171: 03 de Noviembre de 2020 | J171: 30 de Noviembre de 2020 | K171: 1400000 | L171: 1400000 | M171: OFICNA PAI WEB -ARCHIVO CENTRAL | N171: Asistencial | O171: PRESTACION DE SERVICIO | P171: isabelosorio2110@hotmail.com | Q171: 3004836394 | R171: 12
A172: 171 | B172: 72428579 | C172: IVAN ANDRES DOMINGUEZ SAGBINI | D172: Colombia | E172: Atlántico | F172: SOLEDAD | G172: MEDICINA | H172: MEDICO GINECOLOGO DE RUTA INTEGRAL MATERNO PERINATAL | I172: 03 de Noviembre de 2020 | J172: 30 de Noviembre de 2020 | K172: 7500000 | L172: 7500000 | M172: CENTRO DE SALUD 13 DE JUNIO | N172: Asistencial | O172: PRESTACION DE SERVICIO | P172: sagbiniivan@hotmail.com | Q172: 3178302 | R172: 7
A173: 172 | B173: 1010123461 | C173: IVAN RAMIRO MORENO MENDOZA | D173: Colombia | E173: Atlántico | F173: BARRANQUILLA | G173: Diploma de Bachiller comercial | H173: DIGITADOR PAI WEB | I173: 03 de Noviembre de 2020 | J173: 30 de Noviembre de 2020 | K173: 1458000 | L173: 1458000 | M173: OFICNA PAI WEB -ARCHIVO CENTRAL | N173: Administrativo | O173: PRESTACION DE SERVICIO | P173: mivan7588@gmail.com | Q173: 3023730661 | R173: 2
A174: 173 | B174: 32818371 | C174: IVETTE CECILIA SARMIENTO DONADO | D174: Colombia | E174: Atlántico | F174: SABANALARGA | G174: TECNICO | H174: AUXILIAR DE ARCHIVO | I174: 03 de Noviembre de 2020 | J174: 30 de Noviembre de 2020 | K174: 1500000 | L174: 1500000 | M174: ARCHIVO CENTRAL | N174: Administrativo | O174: PRESTACION DE SERVICIO | P174: ivettesarmiento29@hotmail.com | Q174: =VLOOKUP(C174:C661,[1]OPS!$A$3:$C$492,3,0) -> 3012506598 | R174: 12
A175: 174 | B175: 1042447104 | C175: IVOR ANDRES SANJUAN PEREZ | D175: Colombia | E175: Atlántico | F175: BARRANQUILLA | G175: TECNICO PROFESIONAL EN PROCESOS INDUSTRIALES | H175: ORIENTADOR | I175: 03 de Noviembre de 2020 | J175: 30 de Noviembre de 2020 | K175: 1600000 | L175: 1600000 | M175: CENTRO DE SALUD VILLA ESTADIO | N175: Administrativo | O175: PRESTACION DE SERVICIO | P175: ivorsanjuan2016@gmail.com | Q175: 3005063407 | R175: 4
A176: 175 | B176: 1043000746 | C176: JAHNSON YESITH CUELLO ALVAREZ | D176: Colombia | E176: Atlántico | F176: SABANALARGA | G176: TECNICO EN MANTENIMIENTO DE EQUIPOS DE CÓMPUTO | H176: AUXILIAR FACTURACION URGENCIAS | I176: 03 de Noviembre de 2020 | J176: 30 de Noviembre de 2020 | K176: 1800000 | L176: 1800000 | M176: CENTRO DE SALUD 13 DE JUNIO | N176: Administrativo | O176: PRESTACION DE SERVICIO | P176: jacksoncu.alvarez@gmail.com | Q176: 3207672655 | R176: 1
A177: 176 | B177: 1043023724 | C177: JAILINE SOLANO MERCADO | D177: Colombia | E177: Atlántico | F177: SABANALARGA | G177: ESPECIALIZACION EN GERENCIA FINANCIERA | H177: ASESOR FINANCIERO | I177: 03 de Noviembre de 2020 | J177: 30 de Noviembre de 2020 | K177: 5800000 | L177: 5800000 | M177: GERENCIA -ADMON COSTA HERMOSA | N177: Administrativo | O177: PRESTACION DE SERVICIO | P177: jailenesolanomercado@gmail.com | Q177: 3008908576 | R177: 5
A178: 177 | B178: 8495176 | C178: JAIME ALBERTO ALVAREZ NORIEGA | D178: Colombia | E178: Atlántico | F178: PALMAR DE VARELA | G178: MAESTRIA EN INGENIERIA INDUSTRIAL | H178: INGENIERO AMBIENTAL | I178: 03 de Noviembre de 2020 | J178: 30 de Noviembre de 2020 | K178: 3500000 | L178: 3500000 | M178: AMBIENTAL - COSTA HERMOSA | N178: Administrativo | O178: PRESTACION DE SERVICIO | P178: jaimealvarez1902@hotmail.com | Q178: 3108339710 | R178: 1
A179: 178 | B179: 1043002864 | C179: JAIRO ISACC BARRIOS AVILA | D179: Colombia | E179: Atlántico | F179: SABANALARGA | G179: TECNICA PROFESIONAL EN SOPORTE DE SISTEMAS DE INFORMACION | H179: AUXILIAR DE ARCHIVO | I179: 03 de Noviembre de 2020 | J179: 30 de Noviembre de 2020 | K179: 1900000 | L179: 1900000 | M179: ARCHIVO CENTRAL | N179: Administrativo | O179: PRESTACION DE SERVICIO | P179: jairobarrios2011@hotmail.com | Q179: 3006835970 | R179: 1
A180: 179 | B180: 32703101 | C180: JANETH DEL CARMEN GUZMAN CANTILLO | D180: Colombia | E180: Atlántico | F180: BARRANQUILLA | G180: TECNICA PROFESIONAL EN AUXILIAR DE ENFERMERIA | H180: LIDER DE FACTURACION EN CENTROS DE SALUD | I180: 03 de Noviembre de 2020 | J180: 30 de Noviembre de 2020 | K180: 1600000 | L180: 1600000 | M180: CENTRO DE SALUD EL PARQUE | N180: Administrativo | O180: PRESTACION DE SERVICIO | P180: jguzmanfi0705@hotmail.com | Q180: 3829384 | R180: 12
A181: 180 | B181: 26900583 | C181: JANETH JIMENEZ PEÑA | D181: Colombia | E181: Magdalena | F181: SANTA ANA | G181: TRABAJO SOCIAL | H181: TRABAJADORA SOCIAL | I181: 03 de Noviembre de 2020 | J181: 30 de Noviembre de 2020 | K181: 2500000 | L181: 2500000 | M181: CENTRO DE SALUD COSTA HERMOSA | N181: Asistencial | O181: PRESTACION DE SERVICIO | P181: janethdelcristojimenez@yahoo.com | Q181: 3107215666 | R181: 8
A182: 181 | B182: 72072808 | C182: JARID BERDUGO COBO | D182: Colombia | E182: Atlántico | F182: LURUACO | G182: BACHILLER ACADEMICO | H182: REFERENCIA Y CONTRAREFERENCIA | I182: 03 de Noviembre de 2020 | J182: 30 de Noviembre de 2020 | K182: 1776000 | L182: 1776000 | M182: CENTRO DE SALUD CIUDADELA METROPOLITANA | N182: Asistencial | O182: PRESTACION DE SERVICIO | P182: jaridberdugocobo@outlook.com | Q182: 3927153 | R182: 4
A183: 182 | B183: 72098690 | C183: JAVIER ENRIQUE BARANDICA | D183: Colombia | E183: Atlántico | F183: SABANAGRANDE | G183: INGENIERIA DE MERCADOS | H183: TECNICO DE ALMACEN | I183: 03 de Noviembre de 2020 | J183: 30 de Noviembre de 2020 | K183: 3000000 | L183: 3000000 | M183: ALMACEN -ARCHIVO CENTRAL | N183: Administrativo | O183: PRESTACION DE SERVICIO | P183: javierbarandica@hotmail.com | Q183: 3154950863 | R183: 4
A184: 183 | B184: 1007124107 | C184: JEAN CARLOS PEÑA CERVANTES | D184: Colombia | E184: Atlántico | F184: SABANALARGA | G184: TECNICO | H184: AUXILIAR DE ARCHIVO | I184: 03 de Noviembre de 2020 | J184: 30 de Noviembre de 2020 | K184: 1900000 | L184: 1900000 | M184: ARCHIVO CENTRAL | N184: Administrativo | O184: PRESTACION DE SERVICIO | P184: =VLOOKUP(C184:C642,[1]OPS!$A$3:$B$493,2,0) -> jeancarlossena1998@gmail.com | Q184: =VLOOKUP(C184:C647,[1]OPS!$A$3:$C$502,3,0) -> 3043577812 | R184: 4
A185: 184 | B185: 1143453456 | C185: JEAN DAVID MONTALVO ZULETA | D185: Colombia | E185: Atlántico | F185: BARRANQUILLA | G185: TECNICA PROFESIONAL EN CONTABILIDAD Y FINANZAS | H185: AGENTE CALL CENTER | I185: 03 de Noviembre de 2020 | J185: 30 de Noviembre de 2020 | K185: 1378000 | L185: 1378000 | M185: CALL CENTER -CIUDADELA | N185: Administrativo | O185: PRESTACION DE SERVICIO | P185: juacojeandavid@hotmail.com | Q185: 3014286669 | R185: 4
A186: 185 | B186: 1045716621 | C186: JEANNINE GUZMAN OQUENDO | D186: Colombia | E186: Atlántico | F186: BARRANQUILLA | G186: TECNICO PROFESIONAL EN SALUD ORAL | H186: HIGIENISTA ORAL SERVICIOS AMIGABLES | I186: 03 de Noviembre de 2020 | J186: 30 de Noviembre de 2020 | K186: 1166000 | L186: 1166000 | M186: CENTRO DE SALUD CIUDADELA METROPOLITANA | N186: Asistencial | O186: PRESTACION DE SERVICIO | P186: jeango_93@hotmail.com | Q186: 3013856164 | R186: 2
A187: 186 | B187: 32869709 | C187: JENECIS BARRERA MIRANDA | D187: Colombia | E187: Atlántico | F187: SANTO TOMÁS | G187: ENFERMERIA | H187: ENFERMERA JEFE DE RUTA INTEGRAL MATERNO PERINATAL | I187: 03 de Noviembre de 2020 | J187: 30 de Noviembre de 2020 | K187: 2760000 | L187: 2760000 | M187: CENTRO DE SALUD 13 DE JUNIO | N187: Asistencial | O187: PRESTACION DE SERVICIO | P187: genebarrera0224@outlook.com | Q187: 3005422114 | R187: 13
A188: 187 | B188: 1041901335 | C188: JENNIFER LABARRERA RUA | D188: Colombia | E188: Atlántico | F188: PONEDERA | G188: Diploma de Bachiller comercial | H188: DIGITADOR PAI WEB | I188: 03 de Noviembre de 2020 | J188: 30 de Noviembre de 2020 | K188: 1458000 | L188: 1458000 | M188: OFICNA PAI WEB -ARCHIVO CENTRAL | N188: Administrativo | O188: PRESTACION DE SERVICIO | P188: jlabarrera161@gmail.com | Q188: 3045505532 | R188: 4
A189: 188 | B189: 1047358567 | C189: JENNIFER PAULA FRUTO MALDONADO | D189: Colombia | E189: Atlántico | F189: SANTO TOMÁS | G189: MEDICINA | H189: MEDICO CONSULTA EXTERNA | I189: 03 de Noviembre de 2020 | J189: 30 de Noviembre de 2020 | K189: 2120000 | L189: 2120000 | M189: CENTRO DE SALUD SALAMANCA | N189: Asistencial | O189: PRESTACION DE SERVICIO | P189: jeni_0217@hotmail.com | Q189: 3155809270 | R189: 4
A190: 189 | B190: 1140871897 | C190: JESICA FERNANDA DE CASTRO MANTILLA | D190: Colombia | E190: Atlántico | F190: BARRANQUILLA | G190: INGENIERIA | H190: INGENIERA QUIMICA | I190: 03 de Noviembre de 2020 | J190: 30 de Noviembre de 2020 | K190: 4000000 | L190: 4000000 | M190: OFICINA ADMINISTRATIVA SUBGERENCIA CIENTIFICA - COSTA HERMOSA | N190: Administrativo | O190: PRESTACION DE SERVICIO | P190: jesicadecastro1@gmail.com | Q190: =VLOOKUP(C190:C677,[1]OPS!$A$3:$C$492,3,0) -> 3012032393 | R190: 4
A191: 190 | B191: 8675558 | C191: JESUS ALFREDO MALDONADO MEJIA | D191: Colombia | E191: Atlántico | F191: BARRANQUILLA | G191: BACHILLER ACADEMICO | H191: ORIENTADOR | I191: 03 de Noviembre de 2020 | J191: 30 de Noviembre de 2020 | K191: 1270000 | L191: 1270000 | M191: CENTRO DE SALUD MANUELA BELTRAN | N191: Administrativo | O191: PRESTACION DE SERVICIO | P191: jesusmaldonadomejia@gmail.com | Q191: 3175722537 | R191: 10
A192: 191 | B192: 1042444925 | C192: JESUS MORENO DE ALBA | D192: Colombia | E192: Atlántico | F192: SOLEDAD | G192: BACHILLER ACADEMICO | H192: AUXILIAR FACTURACION URGENCIAS | I192: 03 de Noviembre de 2020 | J192: 30 de Noviembre de 2020 | K192: 1680000 | L192: 1680000 | M192: CENTRO DE SALUD 13 DE JUNIO | N192: Administrativo | O192: PRESTACION DE SERVICIO | P192: jesda_bmx@hotmail.com | Q192: 3013360455 | R192: 5
A193: 192 | B193: 8740611 | C193: JESUS RECUERO LAMADRID | D193: Colombia | E193: Atlántico | F193: BARRANQUILLA | G193: Diploma de Bachiller comercial | H193: ORIENTADOR | I193: 03 de Noviembre de 2020 | J193: 30 de Noviembre de 2020 | K193: 1524000 | L193: 1524000 | M193: CENTRO DE SALUD MANUELA BELTRAN | N193: Administrativo | O193: PRESTACION DE SERVICIO | P193: recuerolamadrid@gmail.com | Q193: 3106377550 | R193: 3
A194: 193 | B194: 44161544 | C194: JHOANA CATALINA SANDOVAL ESCORCIA | D194: Colombia | E194: Atlántico | F194: SOLEDAD | G194: ENFERMERIA | H194: ENFERMERA JEFE URGENCIAS | I194: 03 de Noviembre de 2020 | J194: 30 de Noviembre de 2020 | K194: 2280000 | L194: 2280000 | M194: CENTRO DE SALUD 13 DE JUNIO | N194: Asistencial | O194: PRESTACION DE SERVICIO | P194: jonathan-2888@hotmail.com | Q194: 3015857023 | R194: 6
A195: 194 | B195: 72292086 | C195: JHON JEREMY PERCYBROOKS BOLIVAR | D195: Colombia | E195: Atlántico | F195: BARRANQUILLA | G195: ESPECIALIZACION EN INGENIERIA DEL SOFTWARE | H195: APOYO PROCESOS DE INFORMACION EN PYP | I195: 03 de Noviembre de 2020 | J195: 30 de Noviembre de 2020 | K195: 3000000 | L195: 3000000 | M195: OFICINA ADMINISTRATIVA SUBGERENCIA CIENTIFICA - COSTA HERMOSA | N195: Administrativo | O195: PRESTACION DE SERVICIO | P195: jpercybrooks@gmail.com | Q195: 3044964696 | R195: 2
A196: =+A195+1 -> 195 | B196: 1042444832 | C196: JHONNATAN ALFONSO DE LA HOZ BARRIOS | D196: Colombia | E196: Atlántico | F196: SOLEDAD | G196: MEDICINA | H196: MEDICO CONSULTA EXTERNA | I196: 03 de Noviembre de 2020 | J196: 30 de Noviembre de 2020 | K196: 4240000 | L196: 4240000 | M196: CENTRO DE SALUD EL PARQUE | N196: Asistencial | O196: PRESTACION DE SERVICIO | P196: jdelafoz1925@gmail.com | Q196: 3925474 | R196: 2
A197: 196 | B197: 1045676054 | C197: JHONNY ALVAREZ TORRENCILLA | D197: Colombia | E197: Atlántico | F197: BARRANQUILLA | G197: INGENIERIA DE SISTEMAS | H197: INGENIERO DE SISTEMAS - PROCESOS DE SISTEMA DE INFORMACION EN FACTURACION CENTRAL | I197: 03 de Noviembre de 2020 | J197: 30 de Noviembre de 2020 | K197: 4000000 | L197: 4000000 | M197: FACTURACION CENTRAL-COSTA HERMOSA | N197: Administrativo | O197: PRESTACION DE SERVICIO | P197: jhonni0827@gmail.com | Q197: 3122837490 | R197: 4
A198: 197 | B198: 1001877015 | C198: JHORGI MISAEL MENESES BERRIO | D198: Colombia | E198: Atlántico | F198: SOLEDAD | G198: MEDICINA | H198: MEDICO DE URGENCIAS | I198: 03 de Noviembre de 2020 | J198: 30 de Noviembre de 2020 | K198: 3072000 | L198: 3072000 | M198: CENTRO DE SALUD 13 DE JUNIO | N198: Asistencial | O198: PRESTACION DE SERVICIO | P198: jhor-meneses@hotmail.com | Q198: 3016217105 | R198: 4
A199: 198 | B199: 1041890825 | C199: JHOSIMAR GUETTE CANTILLO | D199: Colombia | E199: Atlántico | F199: CAMPO DE LA CRUZ | G199: TECNICO | H199: GESTION DOCUMENTAL TALENTO HUMANO | I199: 03 de Noviembre de 2020 | J199: 30 de Noviembre de 2020 | K199: 1700000 | L199: 1700000 | M199: ARCHIVO CENTRAL | N199: Administrativo | O199: PRESTACION DE SERVICIO | P199: josimar.guette23@gmail.com | Q199: 3016739715 | R199: 4
A200: 199 | B200: 1043001061 | C200: JOCELIN PAOLA GOMEZ AGUIRRE | D200: Colombia | E200: Atlántico | F200: BARRANQUILLA | G200: BACHILLER ACADEMICO | H200: AUXILIAR DE ENFERMERIA | I200: 03 de Noviembre de 2020 | J200: 30 de Noviembre de 2020 | K200: 1166000 | L200: 1166000 | M200: CENTRO DE SALUD COSTA HERMOSA | N200: Asistencial | O200: PRESTACION DE SERVICIO | P200: joselingomez1987@hotmail.com | Q200: =VLOOKUP(C200:C687,[1]OPS!$A$3:$C$492,3,0) -> 3045372536 | R200: 4
... 305 more rows

Sheet PLANTA DE PERSONAL
A1: NOMBRE DEL EMPLEADO | B1: CORREO | C1: TELEFONO | D1: CIUDAD/MUNICIPIO | E1: DENOMINACION | F1: Titulo Profesional | G1: Titulo Tecnico | H1: SALARIO BASE | I1: CENTRO | J1: AÑOS DE EXPERIENCIA
A2: ALTAMAR BARRAZA JORGE LUIS | B2: george_luis_1512@hotmail.com, | C2: 318 7024044 | D2: MALAMBO | E2: Auxiliar Administrativo | F2: ND | G2: CONTABILIDAD | H2: 1993342 | I2: VILLA ESTADIO | J2: 10
A3: ANGULO SALCEDO KELLY BEATRIZ | B3: kellyangulo1983@hotmail.com, | C3: 301 5930293 | D3: SOLEDAD | E3: Auxiliar Administrativo | F3: PSICOLOGA | G3: AUXILIAR DE ARCHIVO, TECNICO PROFESIONAL EN RECURSOS HUMANOS | H3: 1993342 | I3: VILLA ESTADIO | J3: 13
A4: ARIZA MARQUEZ NILSA MARIA | B4: jeynas-28@hotmail.com, | C4: 300 2767278 | D4: BARRANQUILLA | E4: Enfermero Especialista | F4: ENFERMERA | G4: ND | H4: 6411891 | I4: COSTA HERMOSA | J4: 15
A5: ARRIETA MEZA CESAR DAVID | B5: c_david-arrieta@hotmail.com, | C5: 302 2172234 | D5: BARRANQUILLA | E5: MEDICO ESPECIALISTA | F5: MEDICO CIRUJANO | G5: ND | H5: 6411891 | I5: COSTA HERMOSA | J5: 1
A6: BOLIVAR GOMEZ AIDA LUZ | B6: aida.bolivar@hotmail.com, | C6: 313 3214078 | D6: SOLEDAD | E6: Auxiliar Administrativo | F6: ND | G6: ND | H6: 1993342 | I6: 13 DE JUNIO | J6: 13
A7: BOVEA MARIN SERGIO NICOLAS | B7: sergionicolas54@hotmail.com, | C7: 300 4334577 | D7: SOLEDAD | E7: Medico Especialista | F7: MEDICO CIRUJANO | G7: ND | H7: 6411891 | I7: 13 DE JUNIO | J7: 14
A8: BUSTILLO PRETELL JUDITH ISABEL | B8: judithbustillo_gordita24@hotmail.com, | C8: 300 3087961 | D8: BARRANQUILLA | E8: Auxiliar Administrativo | F8: ND | G8: OPERACIÓN DE COMPUTADORES | H8: 1993342 | I8: SALAMANCA | J8: 19
A9: CALVO QUIROZ FREDY ENRIQUE | B9: frecal01@hotmail.com,fredyscalvo58@hotmail.com | C9: 301 3339211 | D9: BARRANQUILLA | E9: Auxiliar Administrativo | F9: ND | G9: ND | H9: 1993342 | I9: SALAMANCA | J9: 19
A10: CAMPO RODRIGUEZ LUXORA IBETH | B10: luxora campo rodriguez<luxanti@hotmail.com>, | C10: 301 6257311 | D10: SOLEDAD | E10: Profesional Universitario | F10: CONTADOR PUBLICO | G10: ANALISIS Y PROGRAMACION DE COMPUTADORES | H10: 5537440 | I10: COSTA HERMOSA | J10: 13
A11: CANO MONTOYA ROQUELINA DE JESUS | B11: roquelinacanomontoya@hotmail.com, | C11: 301 2690099 | D11: SOLEDAD | E11: Axiliar Area de la Salud | F11: ND | G11: AUXILIAR DE ENFERMERIA | H11: 2305314 | I11: SALAMANCA | J11: 17
A12: CASTELAR VELASQUEZ MALKIS ELENA | B12: malkiscastelar@gmail.com, | C12: 300 5354513 | D12: BARRANQUILLA | E12: Medico General | F12: MEDICO CIRUJANO | G12: ND | H12: 5125511 | I12: CIUDADELA | J12: 10
A13: CASTRO ROLONG ALFREDO JOSE | B13: alfredojosecastrorolong39@gmail.com, | C13: 304 6156575 | D13: SOLEDAD | E13: Conductor | F13: ND | G13: ND | H13: 1993342 | I13: 13 DE JUNIO | J13: 14
A14: CERVANTES ARIZA WENDY JOHANA | B14: wendycervante11@hotmail.com, | C14: 312 6724893 | D14: SOLEDAD | E14: Tecnico Administrativo | F14: ND | G14: PROFESIONAL EN ADMINISTRACION DE RECURSOS HUMANOS, SECRETARIA GENERAL | H14: 3104561 | I14: COSTA HERMOSA | J14: 9
A15: CERVANTES MARQUEZ LILIANA DE LA CRUZ | B15: licemarquez01@hotmail.com, | C15: 301 2879881 | D15: SABANALARGA | E15: Secretaria de Gerencia | F15: ND | G15: SECRETARIA GENERAL | H15: 2335679 | I15: COSTA HERMOSA | J15: 1
A16: COLPAS OROZCO FABIAN ENRIQUE | B16: fecolo@hotmail.es, | C16: 313 5770114 | D16: PONEDERA | E16: Jefe de Oficina | F16: ABOGADO | G16: ND | H16: 6545535 | I16: COSTA HERMOSA | J16: 1
A17: DE LA HOZ ROLON ALFONSO MIGUEL | B17: ALFONSOMDELAHOZ-1000@HOTMAIL.COM, | C17: 300 7695334 | D17: SOLEDAD | E17: Medico General | F17: MEDICO CIRUJANO | G17: ND | H17: 5125511 | I17: 13 DE JUNIO | J17: 17
A18: DE LEON BERNIER LUIS CARLOS | B18: luiscdeleonb@hotmail.com, | C18: 300 6623595 | D18: BARRANQUILLA | E18: Profesional Universitario Area Salud | F18: MEDICO CIRUJANO | G18: ND | H18: 5956368 | I18: MACLOVIA | J18: 12
A19: DE MOYA BADILLO LUIS ENRIQUE | B19: luisdemoyab@gmail.com, | C19: 300 7898394 | D19: GALAPA | E19: Tesorero General | F19: ADMINISTRADOR DE EMPRESAS | G19: ND | H19: 5537440 | I19: COSTA HERMOSA | J19: 1
A20: DIAZ ALVAREZ IRAIDA MARIA | B20: iraida diaz<diaziraida24@gmail.com>, | C20: 300 6198717 | D20: SOLEDAD | E20: AUxiliar Area de la Salud | F20: ND | G20: AUXILIAR DE ENFERMERIA | H20: 2305314 | I20: MACLOVIA | J20: 1
A21: DONADO MARTINEZ ASTRID DEL SOCORRO | B21: astrydonado@hotmail.com, | C21: 300 5869374 | D21: Cra 26A# 17-56 | E21: Odontologo Especialista | F21: ODONTOLOGA | G21: ND | H21: 5956368 | I21: COSTA HERMOSA | J21: 13
A22: ESCORCIA RODRIGUEZ ISABEL CECILIA | B22: isabelescorcia1979@hotmail.com, | C22: 300 8081108 | D22: SOLEDAD | E22: Enfermero | F22: ENFERMERA | G22: ND | H22: 3832264 | I22: COSTA HERMOSA | J22: 13
A23: FIORENTINO CASADIEGO ORNELLA | B23: ornefioren@hotmail.com, | C23: 300 3961602 | D23: BARRANQUILLA | E23: Jefe de Oficina Asesora | F23: ABOGADO | G23: ND | H23: 6545535 | I23: COSTA HERMOSA | J23: 1
A24: GOENAGA ZAPATA HUMBERTO JULIO | B24: humbergoen@hotmail.com, | C24: 301 4029009 | D24: BARANOA | E24: Tecnico Operativo | F24: CONTADOR PUBLICO | G24: ND | H24: 3104561 | I24: COSTA HERMOSA | J24: 9
A25: GOMEZ VILLA MARIA ANTONIA | B25: medicomagovi@hotmail.com, | C25: 301 5270994 | D25: SOLEDAD | E25: Medico General | F25: MEDICO CIRUJANO | G25: ND | H25: 5125511 | I25: CIUDADELA | J25: 17
A26: GRANADOS GOMEZ LUIS ANTONIO | B26: drluisgranados@hotmail.com, | C26: 301 7833998 | D26: BARRANQUILLA | E26: Medico Especialista | F26: MEDICO CIRUJANO | G26: ND | H26: 5956368 | I26: MANUELA BELTRAN | J26: 16
A27: GRAVINI ESCORCIA YEISMI JAIR | B27: yeismigravini@hotmail.com, | C27: 320 5767205 | D27: SOLEDAD | E27: Auxiliar Administrativo | F27: COMUNICADOR SOCIAL | G27: TECNICO EN ANALISIS Y PROGRAMACION DE COMPUTADORES | H27: 1993342 | I27: 13 DE JUNIO | J27: 13
A28: GUERRA CORREA YARELIS | B28: yareguerra@hotmail.com, | C28: 301 3983960 | D28: BARRANQUILLA | E28: Medico Especialista | F28: MEDICO CIRUJANO | G28: ND | H28: 5956368 | I28: VILLA ESTADIO | J28: 12
A29: GUTIERREZ DE PIÑERES BARVO GENARO | B29: ggutierrezdep@outlook.com, | C29: 301 6013007 | D29: BARRANQUILLA | E29: Jefe de Oficina | F29: ADMINISTRADOR DE EMPRESAS | G29: ND | H29: 6084365 | I29: COSTA HERMOSA | J29: 1
A30: JIMENEZ BOVEA ERIKA MARIA | B30: erikamariajimenezbovea@gmail.com, | C30: 3108181164 | D30: SOLEDAD | E30: Axiliar Area de la Salud | F30: ND | G30: AUXILIAR DE ENFERMERIA | H30: 2305314 | I30: SALAMANCA | J30: 16
A31: JIMENEZ DE LA PEÑA WILFRAN | B31: wilfran18311@hotmail.com, | C31: 300 5768868 | D31: BARRANQUILLA | E31: Medico Especialista | F31: MEDICO CIRUJANO | G31: ND | H31: 6411891 | I31: CIUDADELA | J31: 13
A32: JIMENEZ GARCIA ROSARIO MARIA | B32: melanyheras@hotmail.com, | C32: 300 4442920 | D32: BARRANQUILLA | E32: Axiliar Area de la Salud | F32: ND | G32: AUXILIAR DE ENFERMERIA | H32: 2305314 | I32: SALAMANCA | J32: 19
A33: LEAL ARROYUELO EDGAR DE JESUS | B33: edgarleal_22@hotmail.com, | C33: 300 3232464 | D33: BARRANQUILLA | E33: Auxiliar Administrativo | F33: ABOGADO | G33: ND | H33: 2335679 | I33: COSTA HERMOSA | J33: 18
A34: LECHUGA ZAMBRANO ESTARLEN DE JESUS | B34: starlen09@hotmail.com, | C34: 314 7271933 | D34: SABANALARGA | E34: Tecnico Administrativo | F34: ND | G34: TECNICO EN GESTION DE SISTEMAS DE MANEJO AMBIENTAL | H34: 2638998 | I34: LA CASITA | J34: 1
A35: MANOTAS ROA ZULMA MARIA | B35: zulmaroa1@hotmail.com, | C35: 300 4626924 | D35: BARRANQUILLA | E35: Jefe de Oficina | F35: ABOGADA | G35: ND | H35: 7580046 | I35: COSTA HERMOSA | J35: 2
A36: MARTINEZ BUSTOS SILVIO RAFAEL | B36: smartinezbustos@hotmail.com, | C36: 301 5451196 | D36: BARRANQUILLA | E36: Medico General | F36: MEDICO CIRUJANO | G36: ND | H36: 5125511 | I36: VILLA ESTADIO | J36: 13
A37: MARTINEZ CANEPPA MILDRED SUCCETTY | B37: succetty1511@hotmail.com, | C37: 301 5016189 | D37: CAMPO DE LA CRUZ | E37: Medico General | F37: MEDICO GENERAL | G37: ND | H37: 5125511 | I37: 13 DE JUNIO | J37: 14
A38: MARTINEZ PACHECO DIANA PATRICIA | B38: maternosalamanca@hotmail.com, | C38: 300 4573599 | D38: SOLEDAD | E38: Medico Especialista | F38: MEDICO CIRUJANO | G38: ND | H38: 5956368 | I38: SALAMANCA | J38: 13
A39: MIRANDA BACA VICTOR HUGO | B39: mirandavictorhugo@hotmail.com, | C39: 301 3360551 | D39: SOLEDAD | E39: Medico Especialista | F39: MEDICO Y CIRUJANO,ABOGADO | G39: ND | H39: 5956368 | I39: ESPERANZA | J39: 2
A40: NIEBLES ROBLES MILADIS SOFIA | B40: milasofi23@hotmail.com, | C40: 300 4821178 | D40: SOLEDAD | E40: Auxiliar Administrativo | F40: ND | G40: SECRETARIA GENERAL | H40: 1993342 | I40: COSTA HERMOSA | J40: 10
A41: OLMOS NAVARRO JORGE LUIS | B41: jorolmos_2004@hotmail.com, | C41: 301 7310356 | D41: SABANALARGA | E41: Jefe de Oficina Recursos Financieros | F41: CONTADOR PUBLICO | G41: ND | H41: 6545535 | I41: COSTA HERMOSA | J41: 1
A42: ORTIZ GONZALEZ KARLA | B42: karlaortizg0712@gmail.com, | C42: 301 6573756 | D42: BARRANQUILLA | E42: Medico General | F42: MEDICO CIRUJANO | G42: ND | H42: 5125511 | I42: EL PARQUE | J42: 12
A43: OSPINO SALGADO CARMEN ELENA | B43: carmenospinosal@hotmail.com, | C43: 300 6266703 | D43: BARRANQUILLA | E43: Axiliar Area de la Salud | F43: ND | G43: AUXILIAR DE ENFERMERIA | H43: 2305314 | I43: VILLA ESTADIO | J43: 16
A44: PALACIO PASTOR AIX | B44: aixpp@outlook.com, | C44: 300 8464116 | D44: BARRANQUILLA | E44: Medico Especialista | F44: MEDICO CIRUJANO | G44: ND | H44: 5956368 | I44: COSTA HERMOSA | J44: 2
A45: PEDRAZA MARTINEZ JHONY JOSE | B45: jpedramar3071@outlook.com, | C45: 300 2116281 | D45: SOLEDAD | E45: Auxiliar Administrativo | F45: ND | G45: ND | H45: 1993342 | I45: 13 DE JUNIO | J45: 18
A46: PEREZ TORRES LUPE CARLINA | B46: luperez-109@hotmail.com, | C46: 321 4607575 | D46: SOLEDAD | E46: Auxiliar Administrativo | F46: ND | G46: AUXILIAR CONTABLE | H46: 1993342 | I46: COSTA HERMOSA | J46: 14
A47: PERTUZ CHARRIS BETTY LUZ | B47: bettypertuz13@gmail.com, | C47: 311 6844566 | D47: STO TOMAS | E47: Subgerente | F47: BACTERIOLOGA | G47: ND | H47: 7580046 | I47: COSTA HERMOSA | J47: 1
A48: PORTO BARCELO KATERINE JASMIN | B48: katefrank1631@hotmail.es,katefrank3116@hotmail.com, | C48: 301 6477217 | D48: SOLEDAD | E48: Medico General | F48: MEDICA CIRUJANA | G48: ND | H48: 5125511 | I48: SALAMANCA | J48: 18
A49: PRIETO COMAS INDIRA ESTELA | B49: indiraprieto1973@gmail.com, | C49: 301 5419573 | D49: SOLEDAD | E49: Axiliar Area de la Salud | F49: ND | G49: AUXILIAR DE ENFERMERIA | H49: 2305314 | I49: COSTA HERMOSA | J49: 13
A50: RODRIGUEZ DE SIMANCA JANETH MERCEDES | B50: yaneth-25rodriguez@hotmail.com, | C50: 300 8105361 | D50: SOLEDAD | E50: Auxiliar Administrativo | F50: ND | G50: TECNICO OPERADOR DE SISTEMAS, AUXILIAR DE CONTABILIDAD Y SECRETARIADO | H50: 1993342 | I50: 13 DE JUNIO | J50: 17
A51: RODRIGUEZ JULIAO MARVEL LUZ | B51: rumar64@hotmail.com, | C51: 300 8105361 | D51: BARRANQUILLA | E51: Medico General | F51: MEDICO CIRUJANO | G51: ND | H51: 5125511 | I51: 13 DE JUNIO | J51: 19
A52: ROMERO DE LA HOZ ZULI ESTER | B52: zulyromero@hotmail.com, | C52: 300 4840881 | D52: BARRANQUILLA | E52: profesional Especializado | F52: INGENIERA DE SISTEMAS | G52: TÉCNICO EN ANÁLISIS Y PROGRAMACIÓN DE COMPUTADORES. | H52: 5537440 | I52: COSTA HERMOSA | J52: 2
A53: ROMERO MANOTAS MARCOS ANIANO | B53: maromoma@hotmail.com, | C53: 3013352500 | D53: BARRANQUILLA | E53: Profesional Universitario | F53: ADMINISTRADOR DE EMPRESAS | G53: ND | H53: 5956368 | I53: COSTA HERMOSA | J53: 11
A54: RUIZ BARBOSA JOSE ISAIAS | B54: jrb4085@hotmail.com, | C54: 300 3348333 | D54: BARRANQUILLA | E54: Medico General | F54: MEDICO CIRUJANO | G54: ND | H54: 5125511 | I54: SALAMANCA | J54: 13
A55: RUIZ MARTINEZ DAMARIS DEL SOCORRO | B55: damarisruizmartinez@outlook.com, | C55: 301 4652589 | D55: SOLEDAD | E55: Axiliar Area de la Salud | F55: ND | G55: AUXILIAR DE ENFERMERIA | H55: 2305314 | I55: 13 DE JUNIO | J55: 18
A56: SALCEDO NIEBLES MAILA PATRICIA | B56: mpsn83@hotmail.com, | C56: 302 3386693 | D56: SOLEDAD | E56: Tecnico Administrativo | F56: ND | G56: ASISTENCIA JURIDICA, SERVICIOS DE HOTELERIA Y TURISMO | H56: 2638998 | I56: COSTA HERMOSA | J56: 13
A57: SAN MARTIN LOPEZ SANDRA MILENA | B57: sandramsanmartin@hotmail.com, | C57: 313 5468102 | D57: BARRANQUILLA | E57: Subgerente | F57: ADMINISTRADOR DE EMPRESAS | G57: ND | H57: 7580046 | I57: COSTA HERMOSA | J57: 1
A58: SANCHEZ PAEZ JUAN ESTEBAN | B58: jotaese-@hotmail.com, | C58: 3215392007 | D58: SABANALARGA | E58: Gerente | F58: MEDICO CIRUJANO | G58: ND | H58: 11932748 | I58: COSTA HERMOSA | J58: 1
A59: SANDOVAL GUTIERREZ GONZALO RAFAEL | B59: gonzalo10-23@hotmail.com, | C59: 300 6080382 | D59: GALAPA | E59: Auxiliar Administrativo | F59: ND | G59: ND | H59: 1993342 | I59: 13 DE JUNIO | J59: 16
A60: SANDOVAL VILORIA EDILBERTO José | B60: edysandovalv@hotmail.es, | C60: 301 6498925 | D60: SOLEDAD | E60: Medico General | F60: MEDICO CIRUJANO | G60: ND | H60: 5125511 | I60: 13 DE JUNIO | J60: 18
A61: SANTANDER SANTANDER ELIS SAUL | B61: elissaul6@hotmail.com, | C61: 300 8290185 | D61: SOLEDAD | E61: Auxiliar Administrativo | F61: ND | G61: ND | H61: 2115305 | I61: COSTA HERMOSA | J61: 15
A62: SANTIAGO ESCORCIA TATIANA DEL CARMEN | B62: tatiansante@hotmail.com, | C62: 300 3111892 | D62: SOLEDAD | E62: Tecnico Operativo | F62: CONTADOR PUBLICO | G62: AUXILIAR DE CONTABILIDAD | H62: 3104561 | I62: COSTA HERMOSA | J62: 4
A63: TORRES GUETE ANTONIO JOSE | B63: tonychoche@hotmail.com, | C63: 314 5415343 | D63: BARRANQUILLA | E63: Auxiliar Administrativo | F63: NEGOCIOS Y FINANZAS INTERNACIONALES | G63: ND | H63: 1993342 | I63: COSTA HERMOSA | J63: 14
A64: TRIGOS CASALLAS GLADYS MARIA | B64: gladystc19@outlook.com,gladystrigos1008@hotmail.com, | C64: 300 4214376 | D64: BARRANQUILLA | E64: Axiliar Area de la Salud | F64: ND | G64: AUXILIAR DE ENFERMERIA | H64: 2305314 | I64: EL PARQUE | J64: 17
A65: TRUJILLO GONZALEZ LEYLA MARIA | B65: leylamariatrujillo@hotmail.es, | C65: 302 4122847 | D65: BARRANQUILLA | E65: Auxiliar Administrativo | F65: ND | G65: AUXILIAR CONTABLE | H65: 1993342 | I65: SALAMANCA | J65: 18
A66: VISBAL JIMENEZ CARLOS FEDERICO | B66: drcarlos1964@hotmail.com, | C66: 300 2802101 | D66: SOLEDAD | E66: Medico Especialista | F66: MEDICO Y CIRUJANO | G66: ND | H66: 5956368 | I66: COSTA HERMOSA | J66: 14
A67: YEPEZ CANTILLO ELIANA PATRICIA | B67: eliana.yepez@hotmail.com, | C67: 300 5971158 | D67: SOLEDAD | E67: Tecnico Administrativo | F67: ND | G67: ND | H67: 3104561 | I67: COSTA HERMOSA | J67: 9
